Body,Body name,Date,Transaction number,Amount,Supplier name,Supplier ID,Expense area,Fund type,Expense type
http://www.ons.gov.uk/ons/guide-method/geography/products/names--codes-and-look-ups/names-and-codes-listings/names-and-codes-for-administrative-geography/index.html,Thanet District Council,04/02/2013,331199,-255,H M Courts & Tribunal Service,HMC003,Director of Operational Services,Revenue,Supplies and Services
http://www.ons.gov.uk/ons/guide-method/geography/products/names--codes-and-look-ups/names-and-codes-listings/names-and-codes-for-administrative-geography/index.html,Thanet District Council,04/02/2013,331201,-14000,Hartsdown Technology College,HAR013,Director of Community Services,Revenue,Supplies and Services
http://www.ons.gov.uk/ons/guide-method/geography/products/names--codes-and-look-ups/names-and-codes-listings/names-and-codes-for-administrative-geography/index.html,Thanet District Council,05/02/2013,330721,604.95,Adecco Uk Ltd,ADE005,Director of Corporate Services and Transformation,Revenue,Employees
http://www.ons.gov.uk/ons/guide-method/geography/products/names--codes-and-look-ups/names-and-codes-listings/names-and-codes-for-administrative-geography/index.html,Thanet District Council,05/02/2013,331104,604.95,Adecco Uk Ltd,ADE005,Director of Corporate Services and Transformation,Revenue,Employees
http://www.ons.gov.uk/ons/guide-method/geography/products/names--codes-and-look-ups/names-and-codes-listings/names-and-codes-for-administrative-geography/index.html,Thanet District Council,05/02/2013,330974,217.36,Allstar Business Solutions Ltd,ALL038,Director of Operational Services,Revenue,Supplies and Services
http://www.ons.gov.uk/ons/guide-method/geography/products/names--codes-and-look-ups/names-and-codes-listings/names-and-codes-for-administrative-geography/index.html,Thanet District Council,05/02/2013,330974,138.59,Allstar Business Solutions Ltd,ALL038,Director of Operational Services,Revenue,Transport Related Expenditure
http://www.ons.gov.uk/ons/guide-method/geography/products/names--codes-and-look-ups/names-and-codes-listings/names-and-codes-for-administrative-geography/index.html,Thanet District Council,05/02/2013,330623,2248.2,Amenity Horticultural Serv Ltd,AME001,Director of Operational Services,Revenue,Supplies and Services
http://www.ons.gov.uk/ons/guide-method/geography/products/names--codes-and-look-ups/names-and-codes-listings/names-and-codes-for-administrative-geography/index.html,Thanet District Council,05/02/2013,330996,311,Archant Kos Media,ARC007,Director of Community Services,Revenue,Supplies and Services
http://www.ons.gov.uk/ons/guide-method/geography/products/names--codes-and-look-ups/names-and-codes-listings/names-and-codes-for-administrative-geography/index.html,Thanet District Council,05/02/2013,331023,4800,Archant Kos Media,ARC007,Director of Community Services,Revenue,Supplies and Services
http://www.ons.gov.uk/ons/guide-method/geography/products/names--codes-and-look-ups/names-and-codes-listings/names-and-codes-for-administrative-geography/index.html,Thanet District Council,05/02/2013,331024,1000,Archant Kos Media,ARC007,Director of Community Services,Revenue,Supplies and Services
http://www.ons.gov.uk/ons/guide-method/geography/products/names--codes-and-look-ups/names-and-codes-listings/names-and-codes-for-administrative-geography/index.html,Thanet District Council,05/02/2013,331025,6131,Archant Kos Media,ARC007,Director of Community Services,Revenue,Supplies and Services
http://www.ons.gov.uk/ons/guide-method/geography/products/names--codes-and-look-ups/names-and-codes-listings/names-and-codes-for-administrative-geography/index.html,Thanet District Council,05/02/2013,330947,461,Blackhurst Wade,BLA004,Director of Operational Services,Revenue,Transport Related Expenditure
http://www.ons.gov.uk/ons/guide-method/geography/products/names--codes-and-look-ups/names-and-codes-listings/names-and-codes-for-administrative-geography/index.html,Thanet District Council,05/02/2013,330303,950,Burgess Marine Ltd,BUR017,Director of Operational Services,Revenue,Premises Related Expenditure
http://www.ons.gov.uk/ons/guide-method/geography/products/names--codes-and-look-ups/names-and-codes-listings/names-and-codes-for-administrative-geography/index.html,Thanet District Council,05/02/2013,330381,3104.03,Canterbury City Council,CAN004,Director of Corporate Services and Transformation,Balance Sheet,Long Term Assets
http://www.ons.gov.uk/ons/guide-method/geography/products/names--codes-and-look-ups/names-and-codes-listings/names-and-codes-for-administrative-geography/index.html,Thanet District Council,05/02/2013,330383,12292.05,Canterbury City Council,CAN004,Director of Operational Services,Revenue,Supplies and Services
http://www.ons.gov.uk/ons/guide-method/geography/products/names--codes-and-look-ups/names-and-codes-listings/names-and-codes-for-administrative-geography/index.html,Thanet District Council,05/02/2013,330386,29483.61,Canterbury City Council,CAN004,Director of Corporate Services and Transformation,Balance Sheet,Long Term Assets
http://www.ons.gov.uk/ons/guide-method/geography/products/names--codes-and-look-ups/names-and-codes-listings/names-and-codes-for-administrative-geography/index.html,Thanet District Council,05/02/2013,331173,2500,Creative Solutions,CRE011,Director of Community Services,Revenue,Supplies and Services
http://www.ons.gov.uk/ons/guide-method/geography/products/names--codes-and-look-ups/names-and-codes-listings/names-and-codes-for-administrative-geography/index.html,Thanet District Council,05/02/2013,330950,318.75,Dover District Council,DOV001,Director of Community Services,Revenue,Supplies and Services
http://www.ons.gov.uk/ons/guide-method/geography/products/names--codes-and-look-ups/names-and-codes-listings/names-and-codes-for-administrative-geography/index.html,Thanet District Council,05/02/2013,330950,4571.25,Dover District Council,DOV001,Director of Operational Services,Revenue,Supplies and Services
http://www.ons.gov.uk/ons/guide-method/geography/products/names--codes-and-look-ups/names-and-codes-listings/names-and-codes-for-administrative-geography/index.html,Thanet District Council,05/02/2013,330398,21750,Dover Harbour Board,DOV006,Director of Operational Services,Revenue,Premises Related Expenditure
http://www.ons.gov.uk/ons/guide-method/geography/products/names--codes-and-look-ups/names-and-codes-listings/names-and-codes-for-administrative-geography/index.html,Thanet District Council,05/02/2013,330130,1381.45,E Saunders Margate Ltd,SAU001,Director of Operational Services,Revenue,Premises Related Expenditure
http://www.ons.gov.uk/ons/guide-method/geography/products/names--codes-and-look-ups/names-and-codes-listings/names-and-codes-for-administrative-geography/index.html,Thanet District Council,05/02/2013,330535,267.99,E Saunders Margate Ltd,SAU001,Director of Operational Services,Revenue,Premises Related Expenditure
http://www.ons.gov.uk/ons/guide-method/geography/products/names--codes-and-look-ups/names-and-codes-listings/names-and-codes-for-administrative-geography/index.html,Thanet District Council,05/02/2013,330955,262,E Saunders Margate Ltd,SAU001,Director of Operational Services,Revenue,Premises Related Expenditure
http://www.ons.gov.uk/ons/guide-method/geography/products/names--codes-and-look-ups/names-and-codes-listings/names-and-codes-for-administrative-geography/index.html,Thanet District Council,05/02/2013,331020,668.38,E Saunders Margate Ltd,SAU001,Director of Operational Services,Revenue,Premises Related Expenditure
http://www.ons.gov.uk/ons/guide-method/geography/products/names--codes-and-look-ups/names-and-codes-listings/names-and-codes-for-administrative-geography/index.html,Thanet District Council,05/02/2013,331021,54.34,E Saunders Margate Ltd,SAU001,Director of Community Services,Revenue,Premises Related Expenditure
http://www.ons.gov.uk/ons/guide-method/geography/products/names--codes-and-look-ups/names-and-codes-listings/names-and-codes-for-administrative-geography/index.html,Thanet District Council,05/02/2013,331021,661.83,E Saunders Margate Ltd,SAU001,Director of Operational Services,Revenue,Premises Related Expenditure
http://www.ons.gov.uk/ons/guide-method/geography/products/names--codes-and-look-ups/names-and-codes-listings/names-and-codes-for-administrative-geography/index.html,Thanet District Council,05/02/2013,331033,308.26,Edf Energy 1 Ltd,SEE012,Director of Operational Services,Revenue,Premises Related Expenditure
http://www.ons.gov.uk/ons/guide-method/geography/products/names--codes-and-look-ups/names-and-codes-listings/names-and-codes-for-administrative-geography/index.html,Thanet District Council,05/02/2013,331141,5456,Evermech Ltd,EVE011,Director of Corporate Services and Transformation,Balance Sheet,Long Term Assets
http://www.ons.gov.uk/ons/guide-method/geography/products/names--codes-and-look-ups/names-and-codes-listings/names-and-codes-for-administrative-geography/index.html,Thanet District Council,05/02/2013,331139,2004.19,Family Mosaic Housing,FAM001,Director of Corporate Services and Transformation,Balance Sheet,Long Term Assets
http://www.ons.gov.uk/ons/guide-method/geography/products/names--codes-and-look-ups/names-and-codes-listings/names-and-codes-for-administrative-geography/index.html,Thanet District Council,05/02/2013,331254,691.49,Family Mosaic Housing,FAM001,Director of Corporate Services and Transformation,Balance Sheet,Long Term Assets
http://www.ons.gov.uk/ons/guide-method/geography/products/names--codes-and-look-ups/names-and-codes-listings/names-and-codes-for-administrative-geography/index.html,Thanet District Council,05/02/2013,330781,3378.18,Fuel Oils Kent,FUE001,Director of Operational Services,Revenue,Supplies and Services
http://www.ons.gov.uk/ons/guide-method/geography/products/names--codes-and-look-ups/names-and-codes-listings/names-and-codes-for-administrative-geography/index.html,Thanet District Council,05/02/2013,330969,750,Geoff Oliver & Associates Ltd,OLI001,Director of Community Services,Revenue,Supplies and Services
http://www.ons.gov.uk/ons/guide-method/geography/products/names--codes-and-look-ups/names-and-codes-listings/names-and-codes-for-administrative-geography/index.html,Thanet District Council,05/02/2013,330970,750,Geoff Oliver & Associates Ltd,OLI001,Director of Community Services,Revenue,Supplies and Services
http://www.ons.gov.uk/ons/guide-method/geography/products/names--codes-and-look-ups/names-and-codes-listings/names-and-codes-for-administrative-geography/index.html,Thanet District Council,05/02/2013,331000,894.5,Goddard Hester,GOD003,Director of Community Services,Revenue,Supplies and Services
http://www.ons.gov.uk/ons/guide-method/geography/products/names--codes-and-look-ups/names-and-codes-listings/names-and-codes-for-administrative-geography/index.html,Thanet District Council,05/02/2013,330124,384.78,Hands On Suppliers Ltd,HAN007,Director of Operational Services,Revenue,Supplies and Services
http://www.ons.gov.uk/ons/guide-method/geography/products/names--codes-and-look-ups/names-and-codes-listings/names-and-codes-for-administrative-geography/index.html,Thanet District Council,05/02/2013,330965,4250,Hem Des Llp,HEM007,Director of Corporate Services and Transformation,Balance Sheet,Long Term Assets
http://www.ons.gov.uk/ons/guide-method/geography/products/names--codes-and-look-ups/names-and-codes-listings/names-and-codes-for-administrative-geography/index.html,Thanet District Council,05/02/2013,330772,4055.58,Hr Go Recruitment Ltd,HRG002,Director of Operational Services,Revenue,Employees
http://www.ons.gov.uk/ons/guide-method/geography/products/names--codes-and-look-ups/names-and-codes-listings/names-and-codes-for-administrative-geography/index.html,Thanet District Council,05/02/2013,330773,3974.16,Hr Go Recruitment Ltd,HRG002,Director of Operational Services,Revenue,Employees
http://www.ons.gov.uk/ons/guide-method/geography/products/names--codes-and-look-ups/names-and-codes-listings/names-and-codes-for-administrative-geography/index.html,Thanet District Council,05/02/2013,330774,444,Hr Go Recruitment Ltd,HRG002,Director of Operational Services,Revenue,Employees
http://www.ons.gov.uk/ons/guide-method/geography/products/names--codes-and-look-ups/names-and-codes-listings/names-and-codes-for-administrative-geography/index.html,Thanet District Council,05/02/2013,330739,700,Ifzw Maintenance Ltd,IFZ001,Director of Operational Services,Revenue,Supplies and Services
http://www.ons.gov.uk/ons/guide-method/geography/products/names--codes-and-look-ups/names-and-codes-listings/names-and-codes-for-administrative-geography/index.html,Thanet District Council,05/02/2013,330803,700,Invicta Solar Energy Ltd,INV014,Director of Community Services,Revenue,Supplies and Services
http://www.ons.gov.uk/ons/guide-method/geography/products/names--codes-and-look-ups/names-and-codes-listings/names-and-codes-for-administrative-geography/index.html,Thanet District Council,05/02/2013,329692,84558.03,J Breheny Contractors Ltd,BRE002,Director of Corporate Services and Transformation,Balance Sheet,Long Term Assets
http://www.ons.gov.uk/ons/guide-method/geography/products/names--codes-and-look-ups/names-and-codes-listings/names-and-codes-for-administrative-geography/index.html,Thanet District Council,05/02/2013,330587,822.5,James Smith(Planning Law Servcs)Ltd,SMI043,Director of Community Services,Revenue,Supplies and Services
http://www.ons.gov.uk/ons/guide-method/geography/products/names--codes-and-look-ups/names-and-codes-listings/names-and-codes-for-administrative-geography/index.html,Thanet District Council,05/02/2013,331041,1735.08,John Gale,GAL001,Director of Corporate Services and Transformation,Balance Sheet,Long Term Assets
http://www.ons.gov.uk/ons/guide-method/geography/products/names--codes-and-look-ups/names-and-codes-listings/names-and-codes-for-administrative-geography/index.html,Thanet District Council,05/02/2013,331140,736.2,John Gale,GAL001,Director of Corporate Services and Transformation,Balance Sheet,Long Term Assets
http://www.ons.gov.uk/ons/guide-method/geography/products/names--codes-and-look-ups/names-and-codes-listings/names-and-codes-for-administrative-geography/index.html,Thanet District Council,05/02/2013,330334,1554,John Parker & Son Ltd,PAR001,Director of Operational Services,Revenue,Supplies and Services
http://www.ons.gov.uk/ons/guide-method/geography/products/names--codes-and-look-ups/names-and-codes-listings/names-and-codes-for-administrative-geography/index.html,Thanet District Council,05/02/2013,330807,937.6,Keltic,KEL007,Director of Operational Services,Revenue,Supplies and Services
http://www.ons.gov.uk/ons/guide-method/geography/products/names--codes-and-look-ups/names-and-codes-listings/names-and-codes-for-administrative-geography/index.html,Thanet District Council,05/02/2013,331212,321959,Kent & Medway Towns Fire Authority,KMT001,Director of Corporate Services and Transformation,Balance Sheet,Reserves
http://www.ons.gov.uk/ons/guide-method/geography/products/names--codes-and-look-ups/names-and-codes-listings/names-and-codes-for-administrative-geography/index.html,Thanet District Council,05/02/2013,331211,4964574,Kent County Council,KCC022,Director of Corporate Services and Transformation,Balance Sheet,Reserves
http://www.ons.gov.uk/ons/guide-method/geography/products/names--codes-and-look-ups/names-and-codes-listings/names-and-codes-for-administrative-geography/index.html,Thanet District Council,05/02/2013,331255,1750,Kent County Council,KCC002,Director of Operational Services,Revenue,Supplies and Services
http://www.ons.gov.uk/ons/guide-method/geography/products/names--codes-and-look-ups/names-and-codes-listings/names-and-codes-for-administrative-geography/index.html,Thanet District Council,05/02/2013,330940,33241.57,Kent County Council (Kcs),KCC003,Director of Operational Services,Revenue,Transport Related Expenditure
http://www.ons.gov.uk/ons/guide-method/geography/products/names--codes-and-look-ups/names-and-codes-listings/names-and-codes-for-administrative-geography/index.html,Thanet District Council,05/02/2013,331136,5320,Kent County Council (Kcs),KCC003,Director of Operational Services,Revenue,Transport Related Expenditure
http://www.ons.gov.uk/ons/guide-method/geography/products/names--codes-and-look-ups/names-and-codes-listings/names-and-codes-for-administrative-geography/index.html,Thanet District Council,05/02/2013,330585,623.23,Kent Educational Boxing,KED002,Director of Community Services,Revenue,Supplies and Services
http://www.ons.gov.uk/ons/guide-method/geography/products/names--codes-and-look-ups/names-and-codes-listings/names-and-codes-for-administrative-geography/index.html,Thanet District Council,05/02/2013,331210,657092,Kent Police Authority,KPA003,Director of Corporate Services and Transformation,Balance Sheet,Reserves
http://www.ons.gov.uk/ons/guide-method/geography/products/names--codes-and-look-ups/names-and-codes-listings/names-and-codes-for-administrative-geography/index.html,Thanet District Council,05/02/2013,328930,550,Lcp Engineering Co Ltd,LCP001,Director of Operational Services,Revenue,Premises Related Expenditure
http://www.ons.gov.uk/ons/guide-method/geography/products/names--codes-and-look-ups/names-and-codes-listings/names-and-codes-for-administrative-geography/index.html,Thanet District Council,05/02/2013,330976,100,Lcp Engineering Co Ltd,LCP001,Director of Operational Services,Revenue,Premises Related Expenditure
http://www.ons.gov.uk/ons/guide-method/geography/products/names--codes-and-look-ups/names-and-codes-listings/names-and-codes-for-administrative-geography/index.html,Thanet District Council,05/02/2013,330948,240,Leafleteers Ltd,LEA023,Director of Community Services,Revenue,Supplies and Services
http://www.ons.gov.uk/ons/guide-method/geography/products/names--codes-and-look-ups/names-and-codes-listings/names-and-codes-for-administrative-geography/index.html,Thanet District Council,05/02/2013,320771,640.85,Lednor Construction Limited,LED003,Director of Corporate Services and Transformation,Balance Sheet,Current Assets
http://www.ons.gov.uk/ons/guide-method/geography/products/names--codes-and-look-ups/names-and-codes-listings/names-and-codes-for-administrative-geography/index.html,Thanet District Council,05/02/2013,330046,1440,Maxwells Grounds Maintenance Ltd,MAX002,Director of Operational Services,Revenue,Premises Related Expenditure
http://www.ons.gov.uk/ons/guide-method/geography/products/names--codes-and-look-ups/names-and-codes-listings/names-and-codes-for-administrative-geography/index.html,Thanet District Council,05/02/2013,330390,750,Maxwells Grounds Maintenance Ltd,MAX002,Director of Operational Services,Revenue,Premises Related Expenditure
http://www.ons.gov.uk/ons/guide-method/geography/products/names--codes-and-look-ups/names-and-codes-listings/names-and-codes-for-administrative-geography/index.html,Thanet District Council,05/02/2013,330941,36491.65,Mears Ltd,MEA003,Director of Corporate Services and Transformation,Balance Sheet,Current Assets
http://www.ons.gov.uk/ons/guide-method/geography/products/names--codes-and-look-ups/names-and-codes-listings/names-and-codes-for-administrative-geography/index.html,Thanet District Council,05/02/2013,330942,10367.2,Mears Ltd,MEA003,Director of Corporate Services and Transformation,Balance Sheet,Current Assets
http://www.ons.gov.uk/ons/guide-method/geography/products/names--codes-and-look-ups/names-and-codes-listings/names-and-codes-for-administrative-geography/index.html,Thanet District Council,05/02/2013,330963,1501,Michael Page Finance,PAG008,Director of Corporate Services and Transformation,Revenue,Employees
http://www.ons.gov.uk/ons/guide-method/geography/products/names--codes-and-look-ups/names-and-codes-listings/names-and-codes-for-administrative-geography/index.html,Thanet District Council,05/02/2013,330262,266.2,Mojo Site Services,MOJ001,Director of Operational Services,Revenue,Premises Related Expenditure
http://www.ons.gov.uk/ons/guide-method/geography/products/names--codes-and-look-ups/names-and-codes-listings/names-and-codes-for-administrative-geography/index.html,Thanet District Council,05/02/2013,330998,814.59,Morgan Jones Ltd,MOR001,East Kent Shared Services,Revenue,Employees
http://www.ons.gov.uk/ons/guide-method/geography/products/names--codes-and-look-ups/names-and-codes-listings/names-and-codes-for-administrative-geography/index.html,Thanet District Council,05/02/2013,327704,12200,Nathaniel Lichfield & Partners Ltd,LIC001,Director of Community Services,Revenue,Supplies and Services
http://www.ons.gov.uk/ons/guide-method/geography/products/names--codes-and-look-ups/names-and-codes-listings/names-and-codes-for-administrative-geography/index.html,Thanet District Council,05/02/2013,331213,4350.12,National Express Ltd,NAT010,Director of Community Services,Revenue,Supplies and Services
http://www.ons.gov.uk/ons/guide-method/geography/products/names--codes-and-look-ups/names-and-codes-listings/names-and-codes-for-administrative-geography/index.html,Thanet District Council,05/02/2013,330722,12215,Northgate Inf Solutions Uk Ltd,NOR018,East Kent Shared Services,Revenue,Supplies and Services
http://www.ons.gov.uk/ons/guide-method/geography/products/names--codes-and-look-ups/names-and-codes-listings/names-and-codes-for-administrative-geography/index.html,Thanet District Council,05/02/2013,331042,14459,Northwood Builders,NOR002,Director of Corporate Services and Transformation,Balance Sheet,Long Term Assets
http://www.ons.gov.uk/ons/guide-method/geography/products/names--codes-and-look-ups/names-and-codes-listings/names-and-codes-for-administrative-geography/index.html,Thanet District Council,05/02/2013,330703,291.65,O2 (Uk) Ltd,O2U001,Director of Operational Services,Revenue,Supplies and Services
http://www.ons.gov.uk/ons/guide-method/geography/products/names--codes-and-look-ups/names-and-codes-listings/names-and-codes-for-administrative-geography/index.html,Thanet District Council,05/02/2013,330309,10877.55,Ocs Group Uk Ltd T/A Fountains,OCS005,Director of Corporate Services and Transformation,Balance Sheet,Current Assets
http://www.ons.gov.uk/ons/guide-method/geography/products/names--codes-and-look-ups/names-and-codes-listings/names-and-codes-for-administrative-geography/index.html,Thanet District Council,05/02/2013,330808,1499.19,Ocs Group Uk Ltd T/A Fountains,OCS005,Director of Corporate Services and Transformation,Balance Sheet,Current Assets
http://www.ons.gov.uk/ons/guide-method/geography/products/names--codes-and-look-ups/names-and-codes-listings/names-and-codes-for-administrative-geography/index.html,Thanet District Council,05/02/2013,330928,285.82,Orange Personal Communications Ltd,ORA002,Director of Corporate Services and Transformation,Revenue,Supplies and Services
http://www.ons.gov.uk/ons/guide-method/geography/products/names--codes-and-look-ups/names-and-codes-listings/names-and-codes-for-administrative-geography/index.html,Thanet District Council,05/02/2013,330683,209.25,Ovenden Tipper Services Ltd,OVE001,Director of Operational Services,Revenue,Third Party Payments
http://www.ons.gov.uk/ons/guide-method/geography/products/names--codes-and-look-ups/names-and-codes-listings/names-and-codes-for-administrative-geography/index.html,Thanet District Council,05/02/2013,330684,804.69,Pierremonts Ltd,PIE002,Director of Operational Services,Revenue,Supplies and Services
http://www.ons.gov.uk/ons/guide-method/geography/products/names--codes-and-look-ups/names-and-codes-listings/names-and-codes-for-administrative-geography/index.html,Thanet District Council,05/02/2013,330967,1249.92,Pitney Bowes Software Ltd,PIT011,East Kent Shared Services,Revenue,Supplies and Services
http://www.ons.gov.uk/ons/guide-method/geography/products/names--codes-and-look-ups/names-and-codes-listings/names-and-codes-for-administrative-geography/index.html,Thanet District Council,05/02/2013,331043,4802,Premiere Projects Limited,PRE022,Director of Corporate Services and Transformation,Balance Sheet,Long Term Assets
http://www.ons.gov.uk/ons/guide-method/geography/products/names--codes-and-look-ups/names-and-codes-listings/names-and-codes-for-administrative-geography/index.html,Thanet District Council,05/02/2013,330322,1620.08,Probrand Ltd,PRO012,East Kent Shared Services,Revenue,Supplies and Services
http://www.ons.gov.uk/ons/guide-method/geography/products/names--codes-and-look-ups/names-and-codes-listings/names-and-codes-for-administrative-geography/index.html,Thanet District Council,05/02/2013,330330,1443.64,Probrand Ltd,PRO012,East Kent Shared Services,Revenue,Supplies and Services
http://www.ons.gov.uk/ons/guide-method/geography/products/names--codes-and-look-ups/names-and-codes-listings/names-and-codes-for-administrative-geography/index.html,Thanet District Council,05/02/2013,330731,366.15,Probrand Ltd,PRO012,East Kent Shared Services,Revenue,Supplies and Services
http://www.ons.gov.uk/ons/guide-method/geography/products/names--codes-and-look-ups/names-and-codes-listings/names-and-codes-for-administrative-geography/index.html,Thanet District Council,05/02/2013,331003,727.3,Probrand Ltd,PRO012,East Kent Shared Services,Revenue,Supplies and Services
http://www.ons.gov.uk/ons/guide-method/geography/products/names--codes-and-look-ups/names-and-codes-listings/names-and-codes-for-administrative-geography/index.html,Thanet District Council,05/02/2013,331004,5417.25,Probrand Ltd,PRO012,East Kent Shared Services,Revenue,Supplies and Services
http://www.ons.gov.uk/ons/guide-method/geography/products/names--codes-and-look-ups/names-and-codes-listings/names-and-codes-for-administrative-geography/index.html,Thanet District Council,05/02/2013,330242,3200,Ramsay Project Management Ltd,RAM037,Director of Corporate Services and Transformation,Balance Sheet,Long Term Assets
http://www.ons.gov.uk/ons/guide-method/geography/products/names--codes-and-look-ups/names-and-codes-listings/names-and-codes-for-administrative-geography/index.html,Thanet District Council,05/02/2013,331130,1581.78,REDACTED PERSONAL DATA,VIC007,Director of Corporate Services and Transformation,Balance Sheet,Long Term Assets
http://www.ons.gov.uk/ons/guide-method/geography/products/names--codes-and-look-ups/names-and-codes-listings/names-and-codes-for-administrative-geography/index.html,Thanet District Council,05/02/2013,330757,549.2,Rigby Taylor Ltd,RIG002,Director of Operational Services,Revenue,Supplies and Services
http://www.ons.gov.uk/ons/guide-method/geography/products/names--codes-and-look-ups/names-and-codes-listings/names-and-codes-for-administrative-geography/index.html,Thanet District Council,05/02/2013,330771,3109.52,Royal Mail,ROY004,Director of Corporate Services and Transformation,Revenue,Supplies and Services
http://www.ons.gov.uk/ons/guide-method/geography/products/names--codes-and-look-ups/names-and-codes-listings/names-and-codes-for-administrative-geography/index.html,Thanet District Council,05/02/2013,331040,6135,South East Building Company Limited,SEB001,Director of Corporate Services and Transformation,Balance Sheet,Long Term Assets
http://www.ons.gov.uk/ons/guide-method/geography/products/names--codes-and-look-ups/names-and-codes-listings/names-and-codes-for-administrative-geography/index.html,Thanet District Council,05/02/2013,329330,285.55,Southern Electric,SEL007,Director of Community Services,Revenue,Premises Related Expenditure
http://www.ons.gov.uk/ons/guide-method/geography/products/names--codes-and-look-ups/names-and-codes-listings/names-and-codes-for-administrative-geography/index.html,Thanet District Council,05/02/2013,330350,1295.75,Southern Electric,SEL007,Director of Community Services,Revenue,Premises Related Expenditure
http://www.ons.gov.uk/ons/guide-method/geography/products/names--codes-and-look-ups/names-and-codes-listings/names-and-codes-for-administrative-geography/index.html,Thanet District Council,05/02/2013,330351,2290.8,Southern Electric,SEL007,Director of Community Services,Revenue,Premises Related Expenditure
http://www.ons.gov.uk/ons/guide-method/geography/products/names--codes-and-look-ups/names-and-codes-listings/names-and-codes-for-administrative-geography/index.html,Thanet District Council,05/02/2013,330697,1572.19,Southern Water,SWA001,Director of Operational Services,Revenue,Premises Related Expenditure
http://www.ons.gov.uk/ons/guide-method/geography/products/names--codes-and-look-ups/names-and-codes-listings/names-and-codes-for-administrative-geography/index.html,Thanet District Council,05/02/2013,330698,1539.04,Southern Water,SWA001,Director of Community Services,Revenue,Premises Related Expenditure
http://www.ons.gov.uk/ons/guide-method/geography/products/names--codes-and-look-ups/names-and-codes-listings/names-and-codes-for-administrative-geography/index.html,Thanet District Council,05/02/2013,330699,343.66,Southern Water,SWA001,Director of Community Services,Revenue,Premises Related Expenditure
http://www.ons.gov.uk/ons/guide-method/geography/products/names--codes-and-look-ups/names-and-codes-listings/names-and-codes-for-administrative-geography/index.html,Thanet District Council,05/02/2013,330702,453.9,Southern Water,SWA001,Director of Operational Services,Revenue,Premises Related Expenditure
http://www.ons.gov.uk/ons/guide-method/geography/products/names--codes-and-look-ups/names-and-codes-listings/names-and-codes-for-administrative-geography/index.html,Thanet District Council,05/02/2013,330714,1062.55,Southern Water,SWA001,Director of Operational Services,Revenue,Premises Related Expenditure
http://www.ons.gov.uk/ons/guide-method/geography/products/names--codes-and-look-ups/names-and-codes-listings/names-and-codes-for-administrative-geography/index.html,Thanet District Council,05/02/2013,330758,363.69,Southern Water,SWA001,Director of Operational Services,Revenue,Premises Related Expenditure
http://www.ons.gov.uk/ons/guide-method/geography/products/names--codes-and-look-ups/names-and-codes-listings/names-and-codes-for-administrative-geography/index.html,Thanet District Council,05/02/2013,330785,935.42,Sparshatts Of Kent Ltd,SPA008,Director of Operational Services,Revenue,Transport Related Expenditure
http://www.ons.gov.uk/ons/guide-method/geography/products/names--codes-and-look-ups/names-and-codes-listings/names-and-codes-for-administrative-geography/index.html,Thanet District Council,05/02/2013,330676,448.8,Supplies Team,SUP001,Director of Corporate Services and Transformation,Revenue,Supplies and Services
http://www.ons.gov.uk/ons/guide-method/geography/products/names--codes-and-look-ups/names-and-codes-listings/names-and-codes-for-administrative-geography/index.html,Thanet District Council,05/02/2013,330679,494.6,Swale Shutter & Door Services Ltd,SWA013,Director of Operational Services,Revenue,Premises Related Expenditure
http://www.ons.gov.uk/ons/guide-method/geography/products/names--codes-and-look-ups/names-and-codes-listings/names-and-codes-for-administrative-geography/index.html,Thanet District Council,05/02/2013,330777,458.8,Swale Shutter & Door Services Ltd,SWA013,Director of Operational Services,Revenue,Premises Related Expenditure
http://www.ons.gov.uk/ons/guide-method/geography/products/names--codes-and-look-ups/names-and-codes-listings/names-and-codes-for-administrative-geography/index.html,Thanet District Council,05/02/2013,330975,502.92,Swindon Commercial Services Ltd,SWI008,Director of Corporate Services and Transformation,Balance Sheet,Long Term Assets
http://www.ons.gov.uk/ons/guide-method/geography/products/names--codes-and-look-ups/names-and-codes-listings/names-and-codes-for-administrative-geography/index.html,Thanet District Council,05/02/2013,331093,300,The Racing Greyhound Pub,RAC005,Director of Corporate Services and Transformation,Revenue,Premises Related Expenditure
http://www.ons.gov.uk/ons/guide-method/geography/products/names--codes-and-look-ups/names-and-codes-listings/names-and-codes-for-administrative-geography/index.html,Thanet District Council,05/02/2013,330241,72045.88,Thomas Sinden Ltd,SIN009,Director of Corporate Services and Transformation,Balance Sheet,Long Term Assets
http://www.ons.gov.uk/ons/guide-method/geography/products/names--codes-and-look-ups/names-and-codes-listings/names-and-codes-for-administrative-geography/index.html,Thanet District Council,05/02/2013,330361,236,Viridor Waste Management Ltd,VIR003,Director of Operational Services,Revenue,Premises Related Expenditure
http://www.ons.gov.uk/ons/guide-method/geography/products/names--codes-and-look-ups/names-and-codes-listings/names-and-codes-for-administrative-geography/index.html,Thanet District Council,05/02/2013,331138,10505,Wessex Lift Company Ltd,WES031,Director of Corporate Services and Transformation,Balance Sheet,Long Term Assets
http://www.ons.gov.uk/ons/guide-method/geography/products/names--codes-and-look-ups/names-and-codes-listings/names-and-codes-for-administrative-geography/index.html,Thanet District Council,05/02/2013,330984,2321.63,Xma Ltd,XMA001,Director of Corporate Services and Transformation,Revenue,Supplies and Services
http://www.ons.gov.uk/ons/guide-method/geography/products/names--codes-and-look-ups/names-and-codes-listings/names-and-codes-for-administrative-geography/index.html,Thanet District Council,05/02/2013,330769,656.7,Youngs Nurseries,YOU001,Director of Operational Services,Revenue,Premises Related Expenditure
http://www.ons.gov.uk/ons/guide-method/geography/products/names--codes-and-look-ups/names-and-codes-listings/names-and-codes-for-administrative-geography/index.html,Thanet District Council,05/02/2013,330769,6.3,Youngs Nurseries,YOU001,Director of Operational Services,Revenue,Supplies and Services
http://www.ons.gov.uk/ons/guide-method/geography/products/names--codes-and-look-ups/names-and-codes-listings/names-and-codes-for-administrative-geography/index.html,Thanet District Council,07/02/2013,331398,1500,Broadstairs Firework Society,BFI001,Director of Community Services,Revenue,Supplies and Services
http://www.ons.gov.uk/ons/guide-method/geography/products/names--codes-and-look-ups/names-and-codes-listings/names-and-codes-for-administrative-geography/index.html,Thanet District Council,07/02/2013,329796,750,Graham Ford Chartered Surveyors,FOR010,Director of Community Services,Revenue,Supplies and Services
http://www.ons.gov.uk/ons/guide-method/geography/products/names--codes-and-look-ups/names-and-codes-listings/names-and-codes-for-administrative-geography/index.html,Thanet District Council,12/02/2013,331415,233,Agwood Ltd,AGW001,Director of Operational Services,Revenue,Transport Related Expenditure
http://www.ons.gov.uk/ons/guide-method/geography/products/names--codes-and-look-ups/names-and-codes-listings/names-and-codes-for-administrative-geography/index.html,Thanet District Council,12/02/2013,331438,10690,Bramling Construction Ltd,BRA020,Director of Corporate Services and Transformation,Balance Sheet,Long Term Assets
http://www.ons.gov.uk/ons/guide-method/geography/products/names--codes-and-look-ups/names-and-codes-listings/names-and-codes-for-administrative-geography/index.html,Thanet District Council,12/02/2013,331417,2323.92,Bridge Security Cctv Ltd,BRI039,Director of Operational Services,Revenue,Supplies and Services
http://www.ons.gov.uk/ons/guide-method/geography/products/names--codes-and-look-ups/names-and-codes-listings/names-and-codes-for-administrative-geography/index.html,Thanet District Council,12/02/2013,331539,1924.99,British Gas Business,GAS009,Director of Operational Services,Revenue,Premises Related Expenditure
http://www.ons.gov.uk/ons/guide-method/geography/products/names--codes-and-look-ups/names-and-codes-listings/names-and-codes-for-administrative-geography/index.html,Thanet District Council,12/02/2013,331252,2310,British Parking Association,BPA001,Director of Operational Services,Revenue,Supplies and Services
http://www.ons.gov.uk/ons/guide-method/geography/products/names--codes-and-look-ups/names-and-codes-listings/names-and-codes-for-administrative-geography/index.html,Thanet District Council,12/02/2013,331482,597,Bt Payment Services Ltd,BTE003,Director of Corporate Services and Transformation,Revenue,Supplies and Services
http://www.ons.gov.uk/ons/guide-method/geography/products/names--codes-and-look-ups/names-and-codes-listings/names-and-codes-for-administrative-geography/index.html,Thanet District Council,12/02/2013,331483,1072,Bt Payment Services Ltd,BTE003,Director of Operational Services,Revenue,Supplies and Services
http://www.ons.gov.uk/ons/guide-method/geography/products/names--codes-and-look-ups/names-and-codes-listings/names-and-codes-for-administrative-geography/index.html,Thanet District Council,12/02/2013,331484,1082.75,Bt Payment Services Ltd,BTE003,Director of Corporate Services and Transformation,Revenue,Supplies and Services
http://www.ons.gov.uk/ons/guide-method/geography/products/names--codes-and-look-ups/names-and-codes-listings/names-and-codes-for-administrative-geography/index.html,Thanet District Council,12/02/2013,331485,606.5,Bt Payment Services Ltd,BTE003,Director of Corporate Services and Transformation,Revenue,Supplies and Services
http://www.ons.gov.uk/ons/guide-method/geography/products/names--codes-and-look-ups/names-and-codes-listings/names-and-codes-for-administrative-geography/index.html,Thanet District Council,12/02/2013,331149,39756.66,Canterbury City Council,CAN004,East Kent Shared Services,Revenue,Supplies and Services
http://www.ons.gov.uk/ons/guide-method/geography/products/names--codes-and-look-ups/names-and-codes-listings/names-and-codes-for-administrative-geography/index.html,Thanet District Council,12/02/2013,331532,2493.23,Canterbury City Council,CAN004,Director of Corporate Services and Transformation,Balance Sheet,Long Term Assets
http://www.ons.gov.uk/ons/guide-method/geography/products/names--codes-and-look-ups/names-and-codes-listings/names-and-codes-for-administrative-geography/index.html,Thanet District Council,12/02/2013,331419,1120,Cfh Total Document Management Ltd,CFH001,East Kent Shared Services,Revenue,Supplies and Services
http://www.ons.gov.uk/ons/guide-method/geography/products/names--codes-and-look-ups/names-and-codes-listings/names-and-codes-for-administrative-geography/index.html,Thanet District Council,12/02/2013,331092,3538,Charterhouse Voice & Data Plc,CHA060,East Kent Shared Services,Revenue,Supplies and Services
http://www.ons.gov.uk/ons/guide-method/geography/products/names--codes-and-look-ups/names-and-codes-listings/names-and-codes-for-administrative-geography/index.html,Thanet District Council,12/02/2013,330399,875,Civica Uk Ltd,CIV003,East Kent Shared Services,Revenue,Supplies and Services
http://www.ons.gov.uk/ons/guide-method/geography/products/names--codes-and-look-ups/names-and-codes-listings/names-and-codes-for-administrative-geography/index.html,Thanet District Council,12/02/2013,331061,329.6,Civica Uk Ltd,CIV003,East Kent Shared Services,Revenue,Supplies and Services
http://www.ons.gov.uk/ons/guide-method/geography/products/names--codes-and-look-ups/names-and-codes-listings/names-and-codes-for-administrative-geography/index.html,Thanet District Council,12/02/2013,331369,698,Clear Picture Services Limited,CLE015,Director of Corporate Services and Transformation,Balance Sheet,Current Assets
http://www.ons.gov.uk/ons/guide-method/geography/products/names--codes-and-look-ups/names-and-codes-listings/names-and-codes-for-administrative-geography/index.html,Thanet District Council,12/02/2013,331445,17224,Connoisseur Renovations,CON037,Director of Corporate Services and Transformation,Balance Sheet,Long Term Assets
http://www.ons.gov.uk/ons/guide-method/geography/products/names--codes-and-look-ups/names-and-codes-listings/names-and-codes-for-administrative-geography/index.html,Thanet District Council,12/02/2013,331080,1193,Craemer Uk Limited,CRA013,Director of Operational Services,Revenue,Supplies and Services
http://www.ons.gov.uk/ons/guide-method/geography/products/names--codes-and-look-ups/names-and-codes-listings/names-and-codes-for-administrative-geography/index.html,Thanet District Council,12/02/2013,331085,900,Dotted Eyes Ltd,DOT001,East Kent Shared Services,Revenue,Supplies and Services
http://www.ons.gov.uk/ons/guide-method/geography/products/names--codes-and-look-ups/names-and-codes-listings/names-and-codes-for-administrative-geography/index.html,Thanet District Council,12/02/2013,330271,658,Dover District Council,DOV001,Director of Corporate Services and Transformation,Revenue,Supplies and Services
http://www.ons.gov.uk/ons/guide-method/geography/products/names--codes-and-look-ups/names-and-codes-listings/names-and-codes-for-administrative-geography/index.html,Thanet District Council,12/02/2013,330960,530.5,Dover District Council,DOV001,Director of Corporate Services and Transformation,Revenue,Employees
http://www.ons.gov.uk/ons/guide-method/geography/products/names--codes-and-look-ups/names-and-codes-listings/names-and-codes-for-administrative-geography/index.html,Thanet District Council,12/02/2013,331447,250,Dover District Council,DOV001,Director of Corporate Services and Transformation,Revenue,Supplies and Services
http://www.ons.gov.uk/ons/guide-method/geography/products/names--codes-and-look-ups/names-and-codes-listings/names-and-codes-for-administrative-geography/index.html,Thanet District Council,12/02/2013,331447,250,Dover District Council,DOV001,Director of Community Services,Revenue,Supplies and Services
http://www.ons.gov.uk/ons/guide-method/geography/products/names--codes-and-look-ups/names-and-codes-listings/names-and-codes-for-administrative-geography/index.html,Thanet District Council,12/02/2013,331543,11871.95,E J Roberts Roofing Ltd,ROB018,Director of Corporate Services and Transformation,Balance Sheet,Long Term Assets
http://www.ons.gov.uk/ons/guide-method/geography/products/names--codes-and-look-ups/names-and-codes-listings/names-and-codes-for-administrative-geography/index.html,Thanet District Council,12/02/2013,331473,323.9,Edf Energy 1 Ltd,SEE012,Director of Operational Services,Revenue,Premises Related Expenditure
http://www.ons.gov.uk/ons/guide-method/geography/products/names--codes-and-look-ups/names-and-codes-listings/names-and-codes-for-administrative-geography/index.html,Thanet District Council,12/02/2013,331475,273.53,Edf Energy 1 Ltd,SEE012,Director of Operational Services,Revenue,Premises Related Expenditure
http://www.ons.gov.uk/ons/guide-method/geography/products/names--codes-and-look-ups/names-and-codes-listings/names-and-codes-for-administrative-geography/index.html,Thanet District Council,12/02/2013,331477,281.76,Edf Energy 1 Ltd,SEE012,Director of Operational Services,Revenue,Premises Related Expenditure
http://www.ons.gov.uk/ons/guide-method/geography/products/names--codes-and-look-ups/names-and-codes-listings/names-and-codes-for-administrative-geography/index.html,Thanet District Council,12/02/2013,330982,778.4,Egbert H Taylor & Company Ltd,TAY005,Director of Operational Services,Revenue,Supplies and Services
http://www.ons.gov.uk/ons/guide-method/geography/products/names--codes-and-look-ups/names-and-codes-listings/names-and-codes-for-administrative-geography/index.html,Thanet District Council,12/02/2013,331431,1338.48,Family Mosaic Housing,FAM001,Director of Corporate Services and Transformation,Balance Sheet,Long Term Assets
http://www.ons.gov.uk/ons/guide-method/geography/products/names--codes-and-look-ups/names-and-codes-listings/names-and-codes-for-administrative-geography/index.html,Thanet District Council,12/02/2013,331436,444.7,Family Mosaic Housing,FAM001,Director of Corporate Services and Transformation,Balance Sheet,Long Term Assets
http://www.ons.gov.uk/ons/guide-method/geography/products/names--codes-and-look-ups/names-and-codes-listings/names-and-codes-for-administrative-geography/index.html,Thanet District Council,12/02/2013,331439,760.3,Family Mosaic Housing,FAM001,Director of Corporate Services and Transformation,Balance Sheet,Long Term Assets
http://www.ons.gov.uk/ons/guide-method/geography/products/names--codes-and-look-ups/names-and-codes-listings/names-and-codes-for-administrative-geography/index.html,Thanet District Council,12/02/2013,331440,1286.8,Family Mosaic Housing,FAM001,Director of Corporate Services and Transformation,Balance Sheet,Long Term Assets
http://www.ons.gov.uk/ons/guide-method/geography/products/names--codes-and-look-ups/names-and-codes-listings/names-and-codes-for-administrative-geography/index.html,Thanet District Council,12/02/2013,331441,485.8,Family Mosaic Housing,FAM001,Director of Corporate Services and Transformation,Balance Sheet,Long Term Assets
http://www.ons.gov.uk/ons/guide-method/geography/products/names--codes-and-look-ups/names-and-codes-listings/names-and-codes-for-administrative-geography/index.html,Thanet District Council,12/02/2013,331444,1056.9,Family Mosaic Housing,FAM001,Director of Corporate Services and Transformation,Balance Sheet,Long Term Assets
http://www.ons.gov.uk/ons/guide-method/geography/products/names--codes-and-look-ups/names-and-codes-listings/names-and-codes-for-administrative-geography/index.html,Thanet District Council,12/02/2013,331007,274.4,Faun Zoeller (Uk) Ltd,FAU001,Director of Operational Services,Revenue,Transport Related Expenditure
http://www.ons.gov.uk/ons/guide-method/geography/products/names--codes-and-look-ups/names-and-codes-listings/names-and-codes-for-administrative-geography/index.html,Thanet District Council,12/02/2013,330741,770,Florence Court Hotel,FLO003,Director of Community Services,Revenue,Supplies and Services
http://www.ons.gov.uk/ons/guide-method/geography/products/names--codes-and-look-ups/names-and-codes-listings/names-and-codes-for-administrative-geography/index.html,Thanet District Council,12/02/2013,331388,630,Florence Court Hotel,FLO003,Director of Community Services,Revenue,Supplies and Services
http://www.ons.gov.uk/ons/guide-method/geography/products/names--codes-and-look-ups/names-and-codes-listings/names-and-codes-for-administrative-geography/index.html,Thanet District Council,12/02/2013,331389,385,Florence Court Hotel,FLO003,Director of Community Services,Revenue,Supplies and Services
http://www.ons.gov.uk/ons/guide-method/geography/products/names--codes-and-look-ups/names-and-codes-listings/names-and-codes-for-administrative-geography/index.html,Thanet District Council,12/02/2013,331220,456.75,Freight Transport Association,FRE007,Director of Operational Services,Revenue,Supplies and Services
http://www.ons.gov.uk/ons/guide-method/geography/products/names--codes-and-look-ups/names-and-codes-listings/names-and-codes-for-administrative-geography/index.html,Thanet District Council,12/02/2013,331221,275,Freight Transport Association,FRE007,Director of Operational Services,Revenue,Supplies and Services
http://www.ons.gov.uk/ons/guide-method/geography/products/names--codes-and-look-ups/names-and-codes-listings/names-and-codes-for-administrative-geography/index.html,Thanet District Council,12/02/2013,331222,325,Freight Transport Association,FRE007,Director of Operational Services,Revenue,Supplies and Services
http://www.ons.gov.uk/ons/guide-method/geography/products/names--codes-and-look-ups/names-and-codes-listings/names-and-codes-for-administrative-geography/index.html,Thanet District Council,12/02/2013,331087,48000,G Chittenden,CHI001,Director of Operational Services,Revenue,Premises Related Expenditure
http://www.ons.gov.uk/ons/guide-method/geography/products/names--codes-and-look-ups/names-and-codes-listings/names-and-codes-for-administrative-geography/index.html,Thanet District Council,12/02/2013,331088,15000,G Chittenden,CHI001,Director of Operational Services,Revenue,Premises Related Expenditure
http://www.ons.gov.uk/ons/guide-method/geography/products/names--codes-and-look-ups/names-and-codes-listings/names-and-codes-for-administrative-geography/index.html,Thanet District Council,12/02/2013,331091,7500,G Chittenden,CHI001,Director of Operational Services,Revenue,Premises Related Expenditure
http://www.ons.gov.uk/ons/guide-method/geography/products/names--codes-and-look-ups/names-and-codes-listings/names-and-codes-for-administrative-geography/index.html,Thanet District Council,12/02/2013,331214,1358.11,G Chittenden,CHI001,Director of Operational Services,Revenue,Premises Related Expenditure
http://www.ons.gov.uk/ons/guide-method/geography/products/names--codes-and-look-ups/names-and-codes-listings/names-and-codes-for-administrative-geography/index.html,Thanet District Council,12/02/2013,331370,243,G Chittenden,CHI001,Director of Corporate Services and Transformation,Balance Sheet,Current Assets
http://www.ons.gov.uk/ons/guide-method/geography/products/names--codes-and-look-ups/names-and-codes-listings/names-and-codes-for-administrative-geography/index.html,Thanet District Council,12/02/2013,331456,2095,Geosphere Environmental Ltd,GEO013,Director of Corporate Services and Transformation,Balance Sheet,Long Term Assets
http://www.ons.gov.uk/ons/guide-method/geography/products/names--codes-and-look-ups/names-and-codes-listings/names-and-codes-for-administrative-geography/index.html,Thanet District Council,12/02/2013,331371,5000,Gerlack & Thorne Ltd,GER001,Director of Corporate Services and Transformation,Balance Sheet,Current Assets
http://www.ons.gov.uk/ons/guide-method/geography/products/names--codes-and-look-ups/names-and-codes-listings/names-and-codes-for-administrative-geography/index.html,Thanet District Council,12/02/2013,331372,10000,Gerlack & Thorne Ltd,GER001,Director of Corporate Services and Transformation,Balance Sheet,Current Assets
http://www.ons.gov.uk/ons/guide-method/geography/products/names--codes-and-look-ups/names-and-codes-listings/names-and-codes-for-administrative-geography/index.html,Thanet District Council,12/02/2013,331404,844,Goodyear Dunlop Truckforce,GOO018,Director of Operational Services,Revenue,Transport Related Expenditure
http://www.ons.gov.uk/ons/guide-method/geography/products/names--codes-and-look-ups/names-and-codes-listings/names-and-codes-for-administrative-geography/index.html,Thanet District Council,12/02/2013,330370,308.88,Greenham,GRE001,Director of Operational Services,Revenue,Supplies and Services
http://www.ons.gov.uk/ons/guide-method/geography/products/names--codes-and-look-ups/names-and-codes-listings/names-and-codes-for-administrative-geography/index.html,Thanet District Council,12/02/2013,331399,242,Greenham,GRE001,Director of Operational Services,Revenue,Supplies and Services
http://www.ons.gov.uk/ons/guide-method/geography/products/names--codes-and-look-ups/names-and-codes-listings/names-and-codes-for-administrative-geography/index.html,Thanet District Council,12/02/2013,331224,345.03,Gurney Reeve And Co Ltd,GUR002,Director of Operational Services,Revenue,Supplies and Services
http://www.ons.gov.uk/ons/guide-method/geography/products/names--codes-and-look-ups/names-and-codes-listings/names-and-codes-for-administrative-geography/index.html,Thanet District Council,12/02/2013,331239,650,Hi Way Services Ltd,HIW002,Director of Operational Services,Revenue,Premises Related Expenditure
http://www.ons.gov.uk/ons/guide-method/geography/products/names--codes-and-look-ups/names-and-codes-listings/names-and-codes-for-administrative-geography/index.html,Thanet District Council,12/02/2013,331240,812.8,Hi Way Services Ltd,HIW002,Director of Operational Services,Revenue,Premises Related Expenditure
http://www.ons.gov.uk/ons/guide-method/geography/products/names--codes-and-look-ups/names-and-codes-listings/names-and-codes-for-administrative-geography/index.html,Thanet District Council,12/02/2013,331082,245,Holt & Wotton Ltd,HOL001,Director of Corporate Services and Transformation,Balance Sheet,Current Assets
http://www.ons.gov.uk/ons/guide-method/geography/products/names--codes-and-look-ups/names-and-codes-listings/names-and-codes-for-administrative-geography/index.html,Thanet District Council,12/02/2013,331381,225,Holt & Wotton Ltd,HOL001,Director of Operational Services,Revenue,Premises Related Expenditure
http://www.ons.gov.uk/ons/guide-method/geography/products/names--codes-and-look-ups/names-and-codes-listings/names-and-codes-for-administrative-geography/index.html,Thanet District Council,12/02/2013,331223,444,Hr Go Recruitment Ltd,HRG002,Director of Operational Services,Revenue,Employees
http://www.ons.gov.uk/ons/guide-method/geography/products/names--codes-and-look-ups/names-and-codes-listings/names-and-codes-for-administrative-geography/index.html,Thanet District Council,12/02/2013,331233,3373.72,Hr Go Recruitment Ltd,HRG002,Director of Operational Services,Revenue,Employees
http://www.ons.gov.uk/ons/guide-method/geography/products/names--codes-and-look-ups/names-and-codes-listings/names-and-codes-for-administrative-geography/index.html,Thanet District Council,12/02/2013,331241,1024,Idox Software  Limited,IDO001,Director of Community Services,Revenue,Supplies and Services
http://www.ons.gov.uk/ons/guide-method/geography/products/names--codes-and-look-ups/names-and-codes-listings/names-and-codes-for-administrative-geography/index.html,Thanet District Council,12/02/2013,331162,5212.65,Insight Direct (Uk) Ltd,INS013,East Kent Shared Services,Revenue,Supplies and Services
http://www.ons.gov.uk/ons/guide-method/geography/products/names--codes-and-look-ups/names-and-codes-listings/names-and-codes-for-administrative-geography/index.html,Thanet District Council,12/02/2013,331437,4105,Jlp Property Maintenance,JLP001,Director of Corporate Services and Transformation,Balance Sheet,Long Term Assets
http://www.ons.gov.uk/ons/guide-method/geography/products/names--codes-and-look-ups/names-and-codes-listings/names-and-codes-for-administrative-geography/index.html,Thanet District Council,12/02/2013,331148,236.66,Johnston Sweepers Ltd,JOH008,Director of Operational Services,Revenue,Transport Related Expenditure
http://www.ons.gov.uk/ons/guide-method/geography/products/names--codes-and-look-ups/names-and-codes-listings/names-and-codes-for-administrative-geography/index.html,Thanet District Council,12/02/2013,330272,350,Kent County Council,KCC002,Director of Operational Services,Revenue,Supplies and Services
http://www.ons.gov.uk/ons/guide-method/geography/products/names--codes-and-look-ups/names-and-codes-listings/names-and-codes-for-administrative-geography/index.html,Thanet District Council,12/02/2013,330716,1888,Kent County Council,KCC002,Director of Corporate Services and Transformation,Revenue,Supplies and Services
http://www.ons.gov.uk/ons/guide-method/geography/products/names--codes-and-look-ups/names-and-codes-listings/names-and-codes-for-administrative-geography/index.html,Thanet District Council,12/02/2013,331489,616,Kent County Council,KCC002,East Kent Shared Services,Revenue,Supplies and Services
http://www.ons.gov.uk/ons/guide-method/geography/products/names--codes-and-look-ups/names-and-codes-listings/names-and-codes-for-administrative-geography/index.html,Thanet District Council,12/02/2013,330268,412,Kent Messenger Ltd,KME001,Director of Community Services,Revenue,Supplies and Services
http://www.ons.gov.uk/ons/guide-method/geography/products/names--codes-and-look-ups/names-and-codes-listings/names-and-codes-for-administrative-geography/index.html,Thanet District Council,12/02/2013,330553,1075,Landor Travel Publications Limited,LAN023,Director of Community Services,Revenue,Supplies and Services
http://www.ons.gov.uk/ons/guide-method/geography/products/names--codes-and-look-ups/names-and-codes-listings/names-and-codes-for-administrative-geography/index.html,Thanet District Council,12/02/2013,331481,2376.49,Level 3 Communications (Uk) Ltd,LEV005,Director of Corporate Services and Transformation,Balance Sheet,Current Assets
http://www.ons.gov.uk/ons/guide-method/geography/products/names--codes-and-look-ups/names-and-codes-listings/names-and-codes-for-administrative-geography/index.html,Thanet District Council,12/02/2013,331006,315,Lexisnexis Uk,LEX002,Director of Corporate Services and Transformation,Revenue,Supplies and Services
http://www.ons.gov.uk/ons/guide-method/geography/products/names--codes-and-look-ups/names-and-codes-listings/names-and-codes-for-administrative-geography/index.html,Thanet District Council,12/02/2013,330987,544.36,Lister Wilder Limited,LIS002,Director of Operational Services,Revenue,Supplies and Services
http://www.ons.gov.uk/ons/guide-method/geography/products/names--codes-and-look-ups/names-and-codes-listings/names-and-codes-for-administrative-geography/index.html,Thanet District Council,12/02/2013,330994,358.28,Lister Wilder Limited,LIS002,Director of Operational Services,Revenue,Supplies and Services
http://www.ons.gov.uk/ons/guide-method/geography/products/names--codes-and-look-ups/names-and-codes-listings/names-and-codes-for-administrative-geography/index.html,Thanet District Council,12/02/2013,331127,2891,Lister Wilder Limited,LIS002,Director of Operational Services,Revenue,Supplies and Services
http://www.ons.gov.uk/ons/guide-method/geography/products/names--codes-and-look-ups/names-and-codes-listings/names-and-codes-for-administrative-geography/index.html,Thanet District Council,12/02/2013,331076,255,M D Electrics,MDE001,Director of Operational Services,Revenue,Premises Related Expenditure
http://www.ons.gov.uk/ons/guide-method/geography/products/names--codes-and-look-ups/names-and-codes-listings/names-and-codes-for-administrative-geography/index.html,Thanet District Council,12/02/2013,331077,290,M D Electrics,MDE001,Director of Operational Services,Revenue,Premises Related Expenditure
http://www.ons.gov.uk/ons/guide-method/geography/products/names--codes-and-look-ups/names-and-codes-listings/names-and-codes-for-administrative-geography/index.html,Thanet District Council,12/02/2013,331068,96473.23,Mears Ltd,MEA003,Director of Community Services,Revenue,Premises Related Expenditure
http://www.ons.gov.uk/ons/guide-method/geography/products/names--codes-and-look-ups/names-and-codes-listings/names-and-codes-for-administrative-geography/index.html,Thanet District Council,12/02/2013,331249,2594.16,Mears Ltd,MEA003,Director of Corporate Services and Transformation,Balance Sheet,Current Assets
http://www.ons.gov.uk/ons/guide-method/geography/products/names--codes-and-look-ups/names-and-codes-listings/names-and-codes-for-administrative-geography/index.html,Thanet District Council,12/02/2013,331250,49850.9,Mears Ltd,MEA003,Director of Corporate Services and Transformation,Balance Sheet,Current Assets
http://www.ons.gov.uk/ons/guide-method/geography/products/names--codes-and-look-ups/names-and-codes-listings/names-and-codes-for-administrative-geography/index.html,Thanet District Council,12/02/2013,331251,582.26,Mears Ltd,MEA003,Director of Corporate Services and Transformation,Balance Sheet,Current Assets
http://www.ons.gov.uk/ons/guide-method/geography/products/names--codes-and-look-ups/names-and-codes-listings/names-and-codes-for-administrative-geography/index.html,Thanet District Council,12/02/2013,331464,1111.98,Morgan Jones Ltd,MOR001,East Kent Shared Services,Revenue,Employees
http://www.ons.gov.uk/ons/guide-method/geography/products/names--codes-and-look-ups/names-and-codes-listings/names-and-codes-for-administrative-geography/index.html,Thanet District Council,12/02/2013,331229,36,N J P Contractors,NJP001,Director of Community Services,Revenue,Premises Related Expenditure
http://www.ons.gov.uk/ons/guide-method/geography/products/names--codes-and-look-ups/names-and-codes-listings/names-and-codes-for-administrative-geography/index.html,Thanet District Council,12/02/2013,331229,877,N J P Contractors,NJP001,Director of Operational Services,Revenue,Premises Related Expenditure
http://www.ons.gov.uk/ons/guide-method/geography/products/names--codes-and-look-ups/names-and-codes-listings/names-and-codes-for-administrative-geography/index.html,Thanet District Council,12/02/2013,331169,1164,Netcall Telecom Ltd,NET013,East Kent Shared Services,Revenue,Supplies and Services
http://www.ons.gov.uk/ons/guide-method/geography/products/names--codes-and-look-ups/names-and-codes-listings/names-and-codes-for-administrative-geography/index.html,Thanet District Council,12/02/2013,331145,301.65,Novus Environmental,NOV008,Director of Corporate Services and Transformation,Revenue,Supplies and Services
http://www.ons.gov.uk/ons/guide-method/geography/products/names--codes-and-look-ups/names-and-codes-listings/names-and-codes-for-administrative-geography/index.html,Thanet District Council,12/02/2013,330953,545.94,Ocs Group Uk Ltd T/A Fountains,OCS005,Director of Operational Services,Revenue,Premises Related Expenditure
http://www.ons.gov.uk/ons/guide-method/geography/products/names--codes-and-look-ups/names-and-codes-listings/names-and-codes-for-administrative-geography/index.html,Thanet District Council,12/02/2013,330779,1970,P Lawrence & Son,LAW001,Director of Operational Services,Revenue,Premises Related Expenditure
http://www.ons.gov.uk/ons/guide-method/geography/products/names--codes-and-look-ups/names-and-codes-listings/names-and-codes-for-administrative-geography/index.html,Thanet District Council,12/02/2013,331073,1085,P Lawrence & Son,LAW001,Director of Operational Services,Revenue,Premises Related Expenditure
http://www.ons.gov.uk/ons/guide-method/geography/products/names--codes-and-look-ups/names-and-codes-listings/names-and-codes-for-administrative-geography/index.html,Thanet District Council,12/02/2013,331115,345,P Lawrence & Son,LAW001,Director of Operational Services,Revenue,Premises Related Expenditure
http://www.ons.gov.uk/ons/guide-method/geography/products/names--codes-and-look-ups/names-and-codes-listings/names-and-codes-for-administrative-geography/index.html,Thanet District Council,12/02/2013,330985,5039.88,Phoenix Software Ltd,PHO002,Director of Corporate Services and Transformation,Revenue,Supplies and Services
http://www.ons.gov.uk/ons/guide-method/geography/products/names--codes-and-look-ups/names-and-codes-listings/names-and-codes-for-administrative-geography/index.html,Thanet District Council,12/02/2013,331146,251.93,Phoenix Software Ltd,PHO002,East Kent Shared Services,Revenue,Supplies and Services
http://www.ons.gov.uk/ons/guide-method/geography/products/names--codes-and-look-ups/names-and-codes-listings/names-and-codes-for-administrative-geography/index.html,Thanet District Council,12/02/2013,331070,649.96,Ppk Services Limited,PPK001,Director of Operational Services,Revenue,Transport Related Expenditure
http://www.ons.gov.uk/ons/guide-method/geography/products/names--codes-and-look-ups/names-and-codes-listings/names-and-codes-for-administrative-geography/index.html,Thanet District Council,12/02/2013,331096,19416.02,Proact Uk Ltd,PRO028,Director of Corporate Services and Transformation,Revenue,Supplies and Services
http://www.ons.gov.uk/ons/guide-method/geography/products/names--codes-and-look-ups/names-and-codes-listings/names-and-codes-for-administrative-geography/index.html,Thanet District Council,12/02/2013,331132,2528.05,Probrand Ltd,PRO012,East Kent Shared Services,Revenue,Supplies and Services
http://www.ons.gov.uk/ons/guide-method/geography/products/names--codes-and-look-ups/names-and-codes-listings/names-and-codes-for-administrative-geography/index.html,Thanet District Council,12/02/2013,330796,280,Rigby Taylor Ltd,RIG002,Director of Operational Services,Revenue,Supplies and Services
http://www.ons.gov.uk/ons/guide-method/geography/products/names--codes-and-look-ups/names-and-codes-listings/names-and-codes-for-administrative-geography/index.html,Thanet District Council,12/02/2013,331150,12000,Rostrvm Solutions Ltd,ROS019,East Kent Shared Services,Revenue,Supplies and Services
http://www.ons.gov.uk/ons/guide-method/geography/products/names--codes-and-look-ups/names-and-codes-listings/names-and-codes-for-administrative-geography/index.html,Thanet District Council,12/02/2013,331155,3000,Rostrvm Solutions Ltd,ROS019,East Kent Shared Services,Revenue,Supplies and Services
http://www.ons.gov.uk/ons/guide-method/geography/products/names--codes-and-look-ups/names-and-codes-listings/names-and-codes-for-administrative-geography/index.html,Thanet District Council,12/02/2013,331230,1360.2,Royal Mail,ROY004,Director of Corporate Services and Transformation,Revenue,Supplies and Services
http://www.ons.gov.uk/ons/guide-method/geography/products/names--codes-and-look-ups/names-and-codes-listings/names-and-codes-for-administrative-geography/index.html,Thanet District Council,12/02/2013,331397,455.81,Safety & Management Solutions Ltd,SAF013,Director of Operational Services,Revenue,Premises Related Expenditure
http://www.ons.gov.uk/ons/guide-method/geography/products/names--codes-and-look-ups/names-and-codes-listings/names-and-codes-for-administrative-geography/index.html,Thanet District Council,12/02/2013,331435,1569.71,Signature,SIG012,Director of Corporate Services and Transformation,Balance Sheet,Long Term Assets
http://www.ons.gov.uk/ons/guide-method/geography/products/names--codes-and-look-ups/names-and-codes-listings/names-and-codes-for-administrative-geography/index.html,Thanet District Council,12/02/2013,331446,2290.19,Signature,SIG012,Director of Corporate Services and Transformation,Balance Sheet,Long Term Assets
http://www.ons.gov.uk/ons/guide-method/geography/products/names--codes-and-look-ups/names-and-codes-listings/names-and-codes-for-administrative-geography/index.html,Thanet District Council,12/02/2013,331063,1095.7,Signway Supplies,SIG013,Director of Operational Services,Revenue,Premises Related Expenditure
http://www.ons.gov.uk/ons/guide-method/geography/products/names--codes-and-look-ups/names-and-codes-listings/names-and-codes-for-administrative-geography/index.html,Thanet District Council,12/02/2013,331156,2790.08,Signway Supplies,SIG013,Director of Operational Services,Revenue,Premises Related Expenditure
http://www.ons.gov.uk/ons/guide-method/geography/products/names--codes-and-look-ups/names-and-codes-listings/names-and-codes-for-administrative-geography/index.html,Thanet District Council,12/02/2013,331432,9295,South East Building Company Limited,SEB001,Director of Corporate Services and Transformation,Balance Sheet,Long Term Assets
http://www.ons.gov.uk/ons/guide-method/geography/products/names--codes-and-look-ups/names-and-codes-listings/names-and-codes-for-administrative-geography/index.html,Thanet District Council,12/02/2013,331051,728.61,Southern Electric,SEL007,Director of Operational Services,Revenue,Premises Related Expenditure
http://www.ons.gov.uk/ons/guide-method/geography/products/names--codes-and-look-ups/names-and-codes-listings/names-and-codes-for-administrative-geography/index.html,Thanet District Council,12/02/2013,331057,538.98,Southern Electric,SEL007,Director of Operational Services,Revenue,Premises Related Expenditure
http://www.ons.gov.uk/ons/guide-method/geography/products/names--codes-and-look-ups/names-and-codes-listings/names-and-codes-for-administrative-geography/index.html,Thanet District Council,12/02/2013,331059,246.21,Southern Electric,SEL007,Director of Operational Services,Revenue,Premises Related Expenditure
http://www.ons.gov.uk/ons/guide-method/geography/products/names--codes-and-look-ups/names-and-codes-listings/names-and-codes-for-administrative-geography/index.html,Thanet District Council,12/02/2013,331048,1463.09,Southern Water,SWA001,Director of Operational Services,Revenue,Premises Related Expenditure
http://www.ons.gov.uk/ons/guide-method/geography/products/names--codes-and-look-ups/names-and-codes-listings/names-and-codes-for-administrative-geography/index.html,Thanet District Council,12/02/2013,331049,2593.61,Southern Water,SWA001,Director of Operational Services,Revenue,Premises Related Expenditure
http://www.ons.gov.uk/ons/guide-method/geography/products/names--codes-and-look-ups/names-and-codes-listings/names-and-codes-for-administrative-geography/index.html,Thanet District Council,12/02/2013,331174,1794.5,Southern Water,SWA001,Director of Operational Services,Revenue,Premises Related Expenditure
http://www.ons.gov.uk/ons/guide-method/geography/products/names--codes-and-look-ups/names-and-codes-listings/names-and-codes-for-administrative-geography/index.html,Thanet District Council,12/02/2013,330795,391.09,Spaldings (Uk) Ltd,SPA006,Director of Operational Services,Revenue,Supplies and Services
http://www.ons.gov.uk/ons/guide-method/geography/products/names--codes-and-look-ups/names-and-codes-listings/names-and-codes-for-administrative-geography/index.html,Thanet District Council,12/02/2013,330537,284.73,Supplies Team,SUP001,East Kent Shared Services,Revenue,Supplies and Services
http://www.ons.gov.uk/ons/guide-method/geography/products/names--codes-and-look-ups/names-and-codes-listings/names-and-codes-for-administrative-geography/index.html,Thanet District Council,12/02/2013,331028,257.9,Supplies Team,SUP001,Director of Corporate Services and Transformation,Revenue,Supplies and Services
http://www.ons.gov.uk/ons/guide-method/geography/products/names--codes-and-look-ups/names-and-codes-listings/names-and-codes-for-administrative-geography/index.html,Thanet District Council,12/02/2013,331385,448.8,Supplies Team,SUP001,Director of Corporate Services and Transformation,Revenue,Supplies and Services
http://www.ons.gov.uk/ons/guide-method/geography/products/names--codes-and-look-ups/names-and-codes-listings/names-and-codes-for-administrative-geography/index.html,Thanet District Council,12/02/2013,331119,24618.46,Swale Heating Ltd,SWA006,Director of Corporate Services and Transformation,Balance Sheet,Current Assets
http://www.ons.gov.uk/ons/guide-method/geography/products/names--codes-and-look-ups/names-and-codes-listings/names-and-codes-for-administrative-geography/index.html,Thanet District Council,12/02/2013,331134,855.2,Swale Heating Ltd,SWA006,Director of Corporate Services and Transformation,Balance Sheet,Current Assets
http://www.ons.gov.uk/ons/guide-method/geography/products/names--codes-and-look-ups/names-and-codes-listings/names-and-codes-for-administrative-geography/index.html,Thanet District Council,12/02/2013,330775,229.7,Swale Shutter & Door Services Ltd,SWA013,Director of Operational Services,Revenue,Supplies and Services
http://www.ons.gov.uk/ons/guide-method/geography/products/names--codes-and-look-ups/names-and-codes-listings/names-and-codes-for-administrative-geography/index.html,Thanet District Council,12/02/2013,330776,966.06,Swale Shutter & Door Services Ltd,SWA013,Director of Operational Services,Revenue,Supplies and Services
http://www.ons.gov.uk/ons/guide-method/geography/products/names--codes-and-look-ups/names-and-codes-listings/names-and-codes-for-administrative-geography/index.html,Thanet District Council,12/02/2013,331429,4500,Tadsad,TAD001,Director of Community Services,Revenue,Supplies and Services
http://www.ons.gov.uk/ons/guide-method/geography/products/names--codes-and-look-ups/names-and-codes-listings/names-and-codes-for-administrative-geography/index.html,Thanet District Council,12/02/2013,331078,1787.8,Thanet Leisureforce Ltd,TLF001,Director of Operational Services,Revenue,Supplies and Services
http://www.ons.gov.uk/ons/guide-method/geography/products/names--codes-and-look-ups/names-and-codes-listings/names-and-codes-for-administrative-geography/index.html,Thanet District Council,12/02/2013,330944,454.5,The Bay Guest House,BAY006,Director of Community Services,Revenue,Supplies and Services
http://www.ons.gov.uk/ons/guide-method/geography/products/names--codes-and-look-ups/names-and-codes-listings/names-and-codes-for-administrative-geography/index.html,Thanet District Council,12/02/2013,331172,346.5,The Bay Guest House,BAY006,Director of Community Services,Revenue,Supplies and Services
http://www.ons.gov.uk/ons/guide-method/geography/products/names--codes-and-look-ups/names-and-codes-listings/names-and-codes-for-administrative-geography/index.html,Thanet District Council,12/02/2013,331542,30000,The Dreamland Trust,DRE003,Director of Corporate Services and Transformation,Balance Sheet,Long Term Assets
http://www.ons.gov.uk/ons/guide-method/geography/products/names--codes-and-look-ups/names-and-codes-listings/names-and-codes-for-administrative-geography/index.html,Thanet District Council,12/02/2013,330745,350,The Glenwood Hotel,GLE007,Director of Community Services,Revenue,Supplies and Services
http://www.ons.gov.uk/ons/guide-method/geography/products/names--codes-and-look-ups/names-and-codes-listings/names-and-codes-for-administrative-geography/index.html,Thanet District Council,12/02/2013,330762,2233.34,The Glenwood Hotel,GLE007,Director of Community Services,Revenue,Supplies and Services
http://www.ons.gov.uk/ons/guide-method/geography/products/names--codes-and-look-ups/names-and-codes-listings/names-and-codes-for-administrative-geography/index.html,Thanet District Council,12/02/2013,330977,575,The Glenwood Hotel,GLE007,Director of Community Services,Revenue,Supplies and Services
http://www.ons.gov.uk/ons/guide-method/geography/products/names--codes-and-look-ups/names-and-codes-listings/names-and-codes-for-administrative-geography/index.html,Thanet District Council,12/02/2013,331243,2333.33,The Glenwood Hotel,GLE007,Director of Community Services,Revenue,Supplies and Services
http://www.ons.gov.uk/ons/guide-method/geography/products/names--codes-and-look-ups/names-and-codes-listings/names-and-codes-for-administrative-geography/index.html,Thanet District Council,12/02/2013,331244,400,The Glenwood Hotel,GLE007,Director of Community Services,Revenue,Supplies and Services
http://www.ons.gov.uk/ons/guide-method/geography/products/names--codes-and-look-ups/names-and-codes-listings/names-and-codes-for-administrative-geography/index.html,Thanet District Council,12/02/2013,331245,2458.33,The Glenwood Hotel,GLE007,Director of Community Services,Revenue,Supplies and Services
http://www.ons.gov.uk/ons/guide-method/geography/products/names--codes-and-look-ups/names-and-codes-listings/names-and-codes-for-administrative-geography/index.html,Thanet District Council,12/02/2013,331452,750,Unikent,UNI003,Director of Community Services,Revenue,Employees
http://www.ons.gov.uk/ons/guide-method/geography/products/names--codes-and-look-ups/names-and-codes-listings/names-and-codes-for-administrative-geography/index.html,Thanet District Council,12/02/2013,331097,1200,W Brazil & Bros,BRA001,Director of Operational Services,Revenue,Premises Related Expenditure
http://www.ons.gov.uk/ons/guide-method/geography/products/names--codes-and-look-ups/names-and-codes-listings/names-and-codes-for-administrative-geography/index.html,Thanet District Council,12/02/2013,331098,4400,W Brazil & Bros,BRA001,Director of Operational Services,Revenue,Premises Related Expenditure
http://www.ons.gov.uk/ons/guide-method/geography/products/names--codes-and-look-ups/names-and-codes-listings/names-and-codes-for-administrative-geography/index.html,Thanet District Council,12/02/2013,330670,952,Walker Construction (Uk) Ltd,WAL001,Director of Corporate Services and Transformation,Revenue,Employees
http://www.ons.gov.uk/ons/guide-method/geography/products/names--codes-and-look-ups/names-and-codes-listings/names-and-codes-for-administrative-geography/index.html,Thanet District Council,12/02/2013,331366,600,Walker Construction (Uk) Ltd,WAL001,Director of Operational Services,Revenue,Supplies and Services
http://www.ons.gov.uk/ons/guide-method/geography/products/names--codes-and-look-ups/names-and-codes-listings/names-and-codes-for-administrative-geography/index.html,Thanet District Council,12/02/2013,331362,315,Willow Pumps Limited,WIL042,Director of Operational Services,Revenue,Premises Related Expenditure
http://www.ons.gov.uk/ons/guide-method/geography/products/names--codes-and-look-ups/names-and-codes-listings/names-and-codes-for-administrative-geography/index.html,Thanet District Council,12/02/2013,331167,212.1,Xma Ltd,XMA001,East Kent Shared Services,Revenue,Supplies and Services
http://www.ons.gov.uk/ons/guide-method/geography/products/names--codes-and-look-ups/names-and-codes-listings/names-and-codes-for-administrative-geography/index.html,Thanet District Council,13/02/2013,331779,973.14,Co-Operative Bank Paypoint,COO018,Director of Corporate Services and Transformation,Revenue,Supplies and Services
http://www.ons.gov.uk/ons/guide-method/geography/products/names--codes-and-look-ups/names-and-codes-listings/names-and-codes-for-administrative-geography/index.html,Thanet District Council,13/02/2013,331779,324.38,Co-Operative Bank Paypoint,COO018,Director of Community Services,Revenue,Supplies and Services
http://www.ons.gov.uk/ons/guide-method/geography/products/names--codes-and-look-ups/names-and-codes-listings/names-and-codes-for-administrative-geography/index.html,Thanet District Council,13/02/2013,331767,2086.62,Nat West Bank,NWE001,Director of Corporate Services and Transformation,Balance Sheet,Long Term Assets
http://www.ons.gov.uk/ons/guide-method/geography/products/names--codes-and-look-ups/names-and-codes-listings/names-and-codes-for-administrative-geography/index.html,Thanet District Council,13/02/2013,331778,251.71,Nat West Bank,NWE001,Director of Corporate Services and Transformation,Revenue,Supplies and Services
http://www.ons.gov.uk/ons/guide-method/geography/products/names--codes-and-look-ups/names-and-codes-listings/names-and-codes-for-administrative-geography/index.html,Thanet District Council,13/02/2013,331764,1240.79,Public Works Loan Board,PWL001,Director of Corporate Services and Transformation,Balance Sheet,Current Assets
http://www.ons.gov.uk/ons/guide-method/geography/products/names--codes-and-look-ups/names-and-codes-listings/names-and-codes-for-administrative-geography/index.html,Thanet District Council,13/02/2013,331764,127.53,Public Works Loan Board,PWL001,Director of Corporate Services and Transformation,Balance Sheet,Long Term Borrowing
http://www.ons.gov.uk/ons/guide-method/geography/products/names--codes-and-look-ups/names-and-codes-listings/names-and-codes-for-administrative-geography/index.html,Thanet District Council,13/02/2013,331769,640.99,Santander,SAN017,Director of Corporate Services and Transformation,Revenue,Supplies and Services
http://www.ons.gov.uk/ons/guide-method/geography/products/names--codes-and-look-ups/names-and-codes-listings/names-and-codes-for-administrative-geography/index.html,Thanet District Council,13/02/2013,331770,1888.81,Santander,SAN017,Director of Corporate Services and Transformation,Revenue,Supplies and Services
http://www.ons.gov.uk/ons/guide-method/geography/products/names--codes-and-look-ups/names-and-codes-listings/names-and-codes-for-administrative-geography/index.html,Thanet District Council,13/02/2013,331770,629.6,Santander,SAN017,Director of Community Services,Revenue,Supplies and Services
http://www.ons.gov.uk/ons/guide-method/geography/products/names--codes-and-look-ups/names-and-codes-listings/names-and-codes-for-administrative-geography/index.html,Thanet District Council,13/02/2013,331771,964.45,Worldpay Ltd,WOR008,Director of Corporate Services and Transformation,Revenue,Supplies and Services
http://www.ons.gov.uk/ons/guide-method/geography/products/names--codes-and-look-ups/names-and-codes-listings/names-and-codes-for-administrative-geography/index.html,Thanet District Council,13/02/2013,331775,1000.56,Worldpay Ltd,WOR008,Director of Corporate Services and Transformation,Revenue,Supplies and Services
http://www.ons.gov.uk/ons/guide-method/geography/products/names--codes-and-look-ups/names-and-codes-listings/names-and-codes-for-administrative-geography/index.html,Thanet District Council,15/02/2013,331994,63736.82,Thomas Sinden Ltd,SIN009,Director of Corporate Services and Transformation,Balance Sheet,Long Term Assets
http://www.ons.gov.uk/ons/guide-method/geography/products/names--codes-and-look-ups/names-and-codes-listings/names-and-codes-for-administrative-geography/index.html,Thanet District Council,18/02/2013,331819,5000,Clive Emson,EMS001,Director of Corporate Services and Transformation,Balance Sheet,Long Term Assets
http://www.ons.gov.uk/ons/guide-method/geography/products/names--codes-and-look-ups/names-and-codes-listings/names-and-codes-for-administrative-geography/index.html,Thanet District Council,18/02/2013,331819,650,Clive Emson,EMS001,Director of Community Services,Revenue,Supplies and Services
http://www.ons.gov.uk/ons/guide-method/geography/products/names--codes-and-look-ups/names-and-codes-listings/names-and-codes-for-administrative-geography/index.html,Thanet District Council,19/02/2013,331553,359.7,Adecco Uk Ltd,ADE005,Director of Corporate Services and Transformation,Revenue,Employees
http://www.ons.gov.uk/ons/guide-method/geography/products/names--codes-and-look-ups/names-and-codes-listings/names-and-codes-for-administrative-geography/index.html,Thanet District Council,19/02/2013,331554,564.08,Adecco Uk Ltd,ADE005,Director of Corporate Services and Transformation,Revenue,Employees
http://www.ons.gov.uk/ons/guide-method/geography/products/names--codes-and-look-ups/names-and-codes-listings/names-and-codes-for-administrative-geography/index.html,Thanet District Council,19/02/2013,331555,604.95,Adecco Uk Ltd,ADE005,Director of Corporate Services and Transformation,Revenue,Employees
http://www.ons.gov.uk/ons/guide-method/geography/products/names--codes-and-look-ups/names-and-codes-listings/names-and-codes-for-administrative-geography/index.html,Thanet District Council,19/02/2013,331556,613.13,Adecco Uk Ltd,ADE005,Director of Corporate Services and Transformation,Revenue,Employees
http://www.ons.gov.uk/ons/guide-method/geography/products/names--codes-and-look-ups/names-and-codes-listings/names-and-codes-for-administrative-geography/index.html,Thanet District Council,19/02/2013,331557,604.95,Adecco Uk Ltd,ADE005,Director of Corporate Services and Transformation,Revenue,Employees
http://www.ons.gov.uk/ons/guide-method/geography/products/names--codes-and-look-ups/names-and-codes-listings/names-and-codes-for-administrative-geography/index.html,Thanet District Council,19/02/2013,331574,604.95,Adecco Uk Ltd,ADE005,Director of Corporate Services and Transformation,Revenue,Employees
http://www.ons.gov.uk/ons/guide-method/geography/products/names--codes-and-look-ups/names-and-codes-listings/names-and-codes-for-administrative-geography/index.html,Thanet District Council,19/02/2013,331906,596.78,Adecco Uk Ltd,ADE005,Director of Corporate Services and Transformation,Revenue,Employees
http://www.ons.gov.uk/ons/guide-method/geography/products/names--codes-and-look-ups/names-and-codes-listings/names-and-codes-for-administrative-geography/index.html,Thanet District Council,19/02/2013,331236,1759,Adm Computing,ADM002,Director of Corporate Services and Transformation,Revenue,Supplies and Services
http://www.ons.gov.uk/ons/guide-method/geography/products/names--codes-and-look-ups/names-and-codes-listings/names-and-codes-for-administrative-geography/index.html,Thanet District Council,19/02/2013,331386,4615.58,Albion Fencing Kent Ltd,ALB005,Director of Operational Services,Revenue,Supplies and Services
http://www.ons.gov.uk/ons/guide-method/geography/products/names--codes-and-look-ups/names-and-codes-listings/names-and-codes-for-administrative-geography/index.html,Thanet District Council,19/02/2013,330991,504,All Access Ltd,ALL031,Director of Corporate Services and Transformation,Balance Sheet,Current Assets
http://www.ons.gov.uk/ons/guide-method/geography/products/names--codes-and-look-ups/names-and-codes-listings/names-and-codes-for-administrative-geography/index.html,Thanet District Council,19/02/2013,331721,495,All Access Ltd,ALL031,Director of Corporate Services and Transformation,Balance Sheet,Current Assets
http://www.ons.gov.uk/ons/guide-method/geography/products/names--codes-and-look-ups/names-and-codes-listings/names-and-codes-for-administrative-geography/index.html,Thanet District Council,19/02/2013,331253,340,Andy Morris,MOR028,Director of Community Services,Revenue,Supplies and Services
http://www.ons.gov.uk/ons/guide-method/geography/products/names--codes-and-look-ups/names-and-codes-listings/names-and-codes-for-administrative-geography/index.html,Thanet District Council,19/02/2013,331936,1620,Ascendit Lifts Ltd,ASC001,Director of Corporate Services and Transformation,Balance Sheet,Long Term Assets
http://www.ons.gov.uk/ons/guide-method/geography/products/names--codes-and-look-ups/names-and-codes-listings/names-and-codes-for-administrative-geography/index.html,Thanet District Council,19/02/2013,331902,625,Ass Of Town Centre Management,ATC003,Director of Community Services,Revenue,Supplies and Services
http://www.ons.gov.uk/ons/guide-method/geography/products/names--codes-and-look-ups/names-and-codes-listings/names-and-codes-for-administrative-geography/index.html,Thanet District Council,19/02/2013,330806,1589.2,Automail Envelopes Ltd,AUT005,East Kent Shared Services,Revenue,Supplies and Services
http://www.ons.gov.uk/ons/guide-method/geography/products/names--codes-and-look-ups/names-and-codes-listings/names-and-codes-for-administrative-geography/index.html,Thanet District Council,19/02/2013,331830,2908.62,Berryman,BER001,Director of Operational Services,Revenue,Supplies and Services
http://www.ons.gov.uk/ons/guide-method/geography/products/names--codes-and-look-ups/names-and-codes-listings/names-and-codes-for-administrative-geography/index.html,Thanet District Council,19/02/2013,331593,2045.03,Bridge Security Cctv Ltd,BRI039,Director of Operational Services,Revenue,Supplies and Services
http://www.ons.gov.uk/ons/guide-method/geography/products/names--codes-and-look-ups/names-and-codes-listings/names-and-codes-for-administrative-geography/index.html,Thanet District Council,19/02/2013,331528,1350,Broadstairs Metal Craft,BRO058,Director of Operational Services,Revenue,Premises Related Expenditure
http://www.ons.gov.uk/ons/guide-method/geography/products/names--codes-and-look-ups/names-and-codes-listings/names-and-codes-for-administrative-geography/index.html,Thanet District Council,19/02/2013,331530,280,Broadstairs Metal Craft,BRO058,Director of Operational Services,Revenue,Premises Related Expenditure
http://www.ons.gov.uk/ons/guide-method/geography/products/names--codes-and-look-ups/names-and-codes-listings/names-and-codes-for-administrative-geography/index.html,Thanet District Council,19/02/2013,331129,1738.5,Campbell Reith Hill Llp,CAM013,Director of Corporate Services and Transformation,Balance Sheet,Long Term Assets
http://www.ons.gov.uk/ons/guide-method/geography/products/names--codes-and-look-ups/names-and-codes-listings/names-and-codes-for-administrative-geography/index.html,Thanet District Council,19/02/2013,330263,423.25,Canford Audio Plc,CAN008,Director of Community Services,Revenue,Supplies and Services
http://www.ons.gov.uk/ons/guide-method/geography/products/names--codes-and-look-ups/names-and-codes-listings/names-and-codes-for-administrative-geography/index.html,Thanet District Council,19/02/2013,331913,1300,Canford Audio Plc,CAN008,Director of Community Services,Revenue,Supplies and Services
http://www.ons.gov.uk/ons/guide-method/geography/products/names--codes-and-look-ups/names-and-codes-listings/names-and-codes-for-administrative-geography/index.html,Thanet District Council,19/02/2013,331914,-1300,Canford Audio Plc,CAN008,Director of Community Services,Revenue,Supplies and Services
http://www.ons.gov.uk/ons/guide-method/geography/products/names--codes-and-look-ups/names-and-codes-listings/names-and-codes-for-administrative-geography/index.html,Thanet District Council,19/02/2013,331915,1300,Canford Audio Plc,CAN008,Director of Community Services,Revenue,Supplies and Services
http://www.ons.gov.uk/ons/guide-method/geography/products/names--codes-and-look-ups/names-and-codes-listings/names-and-codes-for-administrative-geography/index.html,Thanet District Council,19/02/2013,331131,452.97,Capt G Tully,TUL001,Director of Operational Services,Revenue,Supplies and Services
http://www.ons.gov.uk/ons/guide-method/geography/products/names--codes-and-look-ups/names-and-codes-listings/names-and-codes-for-administrative-geography/index.html,Thanet District Council,19/02/2013,331993,1559,Cave Creative,CAV002,Director of Community Services,Revenue,Supplies and Services
http://www.ons.gov.uk/ons/guide-method/geography/products/names--codes-and-look-ups/names-and-codes-listings/names-and-codes-for-administrative-geography/index.html,Thanet District Council,19/02/2013,331568,315,Cfh Total Document Management Ltd,CFH001,East Kent Shared Services,Revenue,Supplies and Services
http://www.ons.gov.uk/ons/guide-method/geography/products/names--codes-and-look-ups/names-and-codes-listings/names-and-codes-for-administrative-geography/index.html,Thanet District Council,19/02/2013,331569,382.2,Cfh Total Document Management Ltd,CFH001,East Kent Shared Services,Revenue,Supplies and Services
http://www.ons.gov.uk/ons/guide-method/geography/products/names--codes-and-look-ups/names-and-codes-listings/names-and-codes-for-administrative-geography/index.html,Thanet District Council,19/02/2013,331571,474.6,Cfh Total Document Management Ltd,CFH001,East Kent Shared Services,Revenue,Supplies and Services
http://www.ons.gov.uk/ons/guide-method/geography/products/names--codes-and-look-ups/names-and-codes-listings/names-and-codes-for-administrative-geography/index.html,Thanet District Council,19/02/2013,331514,987.73,Channel Commercials Plc,CCO001,Director of Operational Services,Revenue,Transport Related Expenditure
http://www.ons.gov.uk/ons/guide-method/geography/products/names--codes-and-look-ups/names-and-codes-listings/names-and-codes-for-administrative-geography/index.html,Thanet District Council,19/02/2013,331515,1411.22,Channel Commercials Plc,CCO001,Director of Operational Services,Revenue,Transport Related Expenditure
http://www.ons.gov.uk/ons/guide-method/geography/products/names--codes-and-look-ups/names-and-codes-listings/names-and-codes-for-administrative-geography/index.html,Thanet District Council,19/02/2013,331558,3200,Civica Uk Ltd,CIV003,Director of Corporate Services and Transformation,Balance Sheet,Long Term Assets
http://www.ons.gov.uk/ons/guide-method/geography/products/names--codes-and-look-ups/names-and-codes-listings/names-and-codes-for-administrative-geography/index.html,Thanet District Council,19/02/2013,330983,320,Cleantec Innovation Ltd,CLE018,Director of Operational Services,Revenue,Premises Related Expenditure
http://www.ons.gov.uk/ons/guide-method/geography/products/names--codes-and-look-ups/names-and-codes-listings/names-and-codes-for-administrative-geography/index.html,Thanet District Council,19/02/2013,331427,303.8,Cobalt Telephone Technologies Ltd,COB002,Director of Operational Services,Revenue,Supplies and Services
http://www.ons.gov.uk/ons/guide-method/geography/products/names--codes-and-look-ups/names-and-codes-listings/names-and-codes-for-administrative-geography/index.html,Thanet District Council,19/02/2013,331454,386.6,Cobalt Telephone Technologies Ltd,COB002,Director of Operational Services,Revenue,Supplies and Services
http://www.ons.gov.uk/ons/guide-method/geography/products/names--codes-and-look-ups/names-and-codes-listings/names-and-codes-for-administrative-geography/index.html,Thanet District Council,19/02/2013,331248,525,Community Network Services Limited,CNS001,Director of Operational Services,Revenue,Transport Related Expenditure
http://www.ons.gov.uk/ons/guide-method/geography/products/names--codes-and-look-ups/names-and-codes-listings/names-and-codes-for-administrative-geography/index.html,Thanet District Council,19/02/2013,331517,18264.25,Crown Estate Re Chesterton Humberts,CRO022,Director of Operational Services,Revenue,Premises Related Expenditure
http://www.ons.gov.uk/ons/guide-method/geography/products/names--codes-and-look-ups/names-and-codes-listings/names-and-codes-for-administrative-geography/index.html,Thanet District Council,19/02/2013,331518,23733.5,Crown Estate Re Chesterton Humberts,CRO022,Director of Operational Services,Revenue,Premises Related Expenditure
http://www.ons.gov.uk/ons/guide-method/geography/products/names--codes-and-look-ups/names-and-codes-listings/names-and-codes-for-administrative-geography/index.html,Thanet District Council,19/02/2013,331520,4435.75,Crown Estate Re Chesterton Humberts,CRO022,Director of Operational Services,Revenue,Premises Related Expenditure
http://www.ons.gov.uk/ons/guide-method/geography/products/names--codes-and-look-ups/names-and-codes-listings/names-and-codes-for-administrative-geography/index.html,Thanet District Council,19/02/2013,331116,1725,Dawsonrentals Sweepers,DAW003,Director of Operational Services,Revenue,Transport Related Expenditure
http://www.ons.gov.uk/ons/guide-method/geography/products/names--codes-and-look-ups/names-and-codes-listings/names-and-codes-for-administrative-geography/index.html,Thanet District Council,19/02/2013,330797,17400,Dover Harbour Board,DOV006,Director of Operational Services,Revenue,Premises Related Expenditure
http://www.ons.gov.uk/ons/guide-method/geography/products/names--codes-and-look-ups/names-and-codes-listings/names-and-codes-for-administrative-geography/index.html,Thanet District Council,19/02/2013,331394,3025,Dr R K Chhabra,CHH001,Director of Operational Services,Revenue,Supplies and Services
http://www.ons.gov.uk/ons/guide-method/geography/products/names--codes-and-look-ups/names-and-codes-listings/names-and-codes-for-administrative-geography/index.html,Thanet District Council,19/02/2013,331013,267.99,E Saunders Margate Ltd,SAU001,Director of Operational Services,Revenue,Premises Related Expenditure
http://www.ons.gov.uk/ons/guide-method/geography/products/names--codes-and-look-ups/names-and-codes-listings/names-and-codes-for-administrative-geography/index.html,Thanet District Council,19/02/2013,331466,374,Estuary Services Ltd,EST002,Director of Operational Services,Revenue,Transport Related Expenditure
http://www.ons.gov.uk/ons/guide-method/geography/products/names--codes-and-look-ups/names-and-codes-listings/names-and-codes-for-administrative-geography/index.html,Thanet District Council,19/02/2013,331826,7451.59,Evermech Ltd,EVE011,Director of Corporate Services and Transformation,Balance Sheet,Long Term Assets
http://www.ons.gov.uk/ons/guide-method/geography/products/names--codes-and-look-ups/names-and-codes-listings/names-and-codes-for-administrative-geography/index.html,Thanet District Council,19/02/2013,331725,297,Expo Management Ltd,EXP006,Director of Community Services,Revenue,Supplies and Services
http://www.ons.gov.uk/ons/guide-method/geography/products/names--codes-and-look-ups/names-and-codes-listings/names-and-codes-for-administrative-geography/index.html,Thanet District Council,19/02/2013,331421,108242.25,Facultatieve Technologies,FAC003,Director of Corporate Services and Transformation,Balance Sheet,Long Term Assets
http://www.ons.gov.uk/ons/guide-method/geography/products/names--codes-and-look-ups/names-and-codes-listings/names-and-codes-for-administrative-geography/index.html,Thanet District Council,19/02/2013,331930,831.6,Family Mosaic Housing,FAM001,Director of Corporate Services and Transformation,Balance Sheet,Long Term Assets
http://www.ons.gov.uk/ons/guide-method/geography/products/names--codes-and-look-ups/names-and-codes-listings/names-and-codes-for-administrative-geography/index.html,Thanet District Council,19/02/2013,331218,231.04,G Chittenden,CHI001,Director of Operational Services,Revenue,Premises Related Expenditure
http://www.ons.gov.uk/ons/guide-method/geography/products/names--codes-and-look-ups/names-and-codes-listings/names-and-codes-for-administrative-geography/index.html,Thanet District Council,19/02/2013,331219,20000,G Chittenden,CHI001,Director of Operational Services,Revenue,Premises Related Expenditure
http://www.ons.gov.uk/ons/guide-method/geography/products/names--codes-and-look-ups/names-and-codes-listings/names-and-codes-for-administrative-geography/index.html,Thanet District Council,19/02/2013,332098,12500,G Chittenden,CHI001,Director of Operational Services,Revenue,Premises Related Expenditure
http://www.ons.gov.uk/ons/guide-method/geography/products/names--codes-and-look-ups/names-and-codes-listings/names-and-codes-for-administrative-geography/index.html,Thanet District Council,19/02/2013,331128,4000,Gardiner & Theobald Llp,GAR020,Director of Corporate Services and Transformation,Balance Sheet,Long Term Assets
http://www.ons.gov.uk/ons/guide-method/geography/products/names--codes-and-look-ups/names-and-codes-listings/names-and-codes-for-administrative-geography/index.html,Thanet District Council,19/02/2013,331889,355.7,Gb Promotional Products Ltd,GBP001,East Kent Shared Services,Revenue,Supplies and Services
http://www.ons.gov.uk/ons/guide-method/geography/products/names--codes-and-look-ups/names-and-codes-listings/names-and-codes-for-administrative-geography/index.html,Thanet District Council,19/02/2013,331592,1895,Graham Ford Chartered Surveyors,FOR010,Director of Community Services,Revenue,Supplies and Services
http://www.ons.gov.uk/ons/guide-method/geography/products/names--codes-and-look-ups/names-and-codes-listings/names-and-codes-for-administrative-geography/index.html,Thanet District Council,19/02/2013,331407,225,Guideline Lift Services Ltd,GUI002,Director of Operational Services,Revenue,Premises Related Expenditure
http://www.ons.gov.uk/ons/guide-method/geography/products/names--codes-and-look-ups/names-and-codes-listings/names-and-codes-for-administrative-geography/index.html,Thanet District Council,19/02/2013,331409,258.34,Guideline Lift Services Ltd,GUI002,Director of Operational Services,Revenue,Premises Related Expenditure
http://www.ons.gov.uk/ons/guide-method/geography/products/names--codes-and-look-ups/names-and-codes-listings/names-and-codes-for-administrative-geography/index.html,Thanet District Council,19/02/2013,331433,2397,Handicare Accessibility Ltd,HAN017,Director of Corporate Services and Transformation,Balance Sheet,Long Term Assets
http://www.ons.gov.uk/ons/guide-method/geography/products/names--codes-and-look-ups/names-and-codes-listings/names-and-codes-for-administrative-geography/index.html,Thanet District Council,19/02/2013,331434,1831,Handicare Accessibility Ltd,HAN017,Director of Corporate Services and Transformation,Balance Sheet,Long Term Assets
http://www.ons.gov.uk/ons/guide-method/geography/products/names--codes-and-look-ups/names-and-codes-listings/names-and-codes-for-administrative-geography/index.html,Thanet District Council,19/02/2013,331488,65206.52,Heath Lambert Limited (Client Money),HEA011,Director of Corporate Services and Transformation,Balance Sheet,Current Assets
http://www.ons.gov.uk/ons/guide-method/geography/products/names--codes-and-look-ups/names-and-codes-listings/names-and-codes-for-administrative-geography/index.html,Thanet District Council,19/02/2013,331544,15937.3,Heath Lambert Limited (Client Money),HEA011,Director of Corporate Services and Transformation,Balance Sheet,Current Assets
http://www.ons.gov.uk/ons/guide-method/geography/products/names--codes-and-look-ups/names-and-codes-listings/names-and-codes-for-administrative-geography/index.html,Thanet District Council,19/02/2013,331573,2696.51,Heath Lambert Limited (Client Money),HEA011,Director of Corporate Services and Transformation,Balance Sheet,Current Assets
http://www.ons.gov.uk/ons/guide-method/geography/products/names--codes-and-look-ups/names-and-codes-listings/names-and-codes-for-administrative-geography/index.html,Thanet District Council,19/02/2013,331585,588828.34,Heath Lambert Limited (Client Money),HEA011,Director of Corporate Services and Transformation,Balance Sheet,Current Assets
http://www.ons.gov.uk/ons/guide-method/geography/products/names--codes-and-look-ups/names-and-codes-listings/names-and-codes-for-administrative-geography/index.html,Thanet District Council,19/02/2013,331586,23269.16,Heath Lambert Limited (Client Money),HEA011,Director of Corporate Services and Transformation,Balance Sheet,Current Assets
http://www.ons.gov.uk/ons/guide-method/geography/products/names--codes-and-look-ups/names-and-codes-listings/names-and-codes-for-administrative-geography/index.html,Thanet District Council,19/02/2013,331458,3849.32,Holbrook Revell Electrical Ltd,HOL015,Director of Operational Services,Revenue,Supplies and Services
http://www.ons.gov.uk/ons/guide-method/geography/products/names--codes-and-look-ups/names-and-codes-listings/names-and-codes-for-administrative-geography/index.html,Thanet District Council,19/02/2013,331825,4492.2,Hr Go Recruitment Ltd,HRG002,Director of Operational Services,Revenue,Employees
http://www.ons.gov.uk/ons/guide-method/geography/products/names--codes-and-look-ups/names-and-codes-listings/names-and-codes-for-administrative-geography/index.html,Thanet District Council,19/02/2013,332080,499.5,Hr Go Recruitment Ltd,HRG002,Director of Operational Services,Revenue,Employees
http://www.ons.gov.uk/ons/guide-method/geography/products/names--codes-and-look-ups/names-and-codes-listings/names-and-codes-for-administrative-geography/index.html,Thanet District Council,19/02/2013,331168,210,Imperial Civil Enforcement Sols Ltd,IMP008,Director of Operational Services,Revenue,Supplies and Services
http://www.ons.gov.uk/ons/guide-method/geography/products/names--codes-and-look-ups/names-and-codes-listings/names-and-codes-for-administrative-geography/index.html,Thanet District Council,19/02/2013,331744,1568,Insight Direct (Uk) Ltd,INS013,East Kent Shared Services,Revenue,Supplies and Services
http://www.ons.gov.uk/ons/guide-method/geography/products/names--codes-and-look-ups/names-and-codes-listings/names-and-codes-for-administrative-geography/index.html,Thanet District Council,19/02/2013,332081,4885,J C White Geomatics Ltd,WHI019,Director of Community Services,Revenue,Supplies and Services
http://www.ons.gov.uk/ons/guide-method/geography/products/names--codes-and-look-ups/names-and-codes-listings/names-and-codes-for-administrative-geography/index.html,Thanet District Council,19/02/2013,331423,6030,Keep Britain Tidy,KEE011,Director of Operational Services,Revenue,Supplies and Services
http://www.ons.gov.uk/ons/guide-method/geography/products/names--codes-and-look-ups/names-and-codes-listings/names-and-codes-for-administrative-geography/index.html,Thanet District Council,19/02/2013,331463,3556.98,Kent County Council (Kcs),KCC003,Director of Corporate Services and Transformation,Revenue,Supplies and Services
http://www.ons.gov.uk/ons/guide-method/geography/products/names--codes-and-look-ups/names-and-codes-listings/names-and-codes-for-administrative-geography/index.html,Thanet District Council,19/02/2013,331463,197.61,Kent County Council (Kcs),KCC003,Director of Community Services,Revenue,Supplies and Services
http://www.ons.gov.uk/ons/guide-method/geography/products/names--codes-and-look-ups/names-and-codes-listings/names-and-codes-for-administrative-geography/index.html,Thanet District Council,19/02/2013,331463,790.44,Kent County Council (Kcs),KCC003,Director of Operational Services,Revenue,Supplies and Services
http://www.ons.gov.uk/ons/guide-method/geography/products/names--codes-and-look-ups/names-and-codes-listings/names-and-codes-for-administrative-geography/index.html,Thanet District Council,19/02/2013,331463,197.61,Kent County Council (Kcs),KCC003,East Kent Shared Services,Revenue,Supplies and Services
http://www.ons.gov.uk/ons/guide-method/geography/products/names--codes-and-look-ups/names-and-codes-listings/names-and-codes-for-administrative-geography/index.html,Thanet District Council,19/02/2013,331836,394.79,Kent County Council (Kcs),KCC003,Director of Operational Services,Revenue,Premises Related Expenditure
http://www.ons.gov.uk/ons/guide-method/geography/products/names--codes-and-look-ups/names-and-codes-listings/names-and-codes-for-administrative-geography/index.html,Thanet District Council,19/02/2013,331837,1927.63,Kent County Council (Kcs),KCC003,Director of Operational Services,Revenue,Premises Related Expenditure
http://www.ons.gov.uk/ons/guide-method/geography/products/names--codes-and-look-ups/names-and-codes-listings/names-and-codes-for-administrative-geography/index.html,Thanet District Council,19/02/2013,331838,1802.99,Kent County Council (Kcs),KCC003,Director of Community Services,Revenue,Premises Related Expenditure
http://www.ons.gov.uk/ons/guide-method/geography/products/names--codes-and-look-ups/names-and-codes-listings/names-and-codes-for-administrative-geography/index.html,Thanet District Council,19/02/2013,331839,1209.19,Kent County Council (Kcs),KCC003,Director of Operational Services,Revenue,Premises Related Expenditure
http://www.ons.gov.uk/ons/guide-method/geography/products/names--codes-and-look-ups/names-and-codes-listings/names-and-codes-for-administrative-geography/index.html,Thanet District Council,19/02/2013,331840,2224.25,Kent County Council (Kcs),KCC003,Director of Operational Services,Revenue,Premises Related Expenditure
http://www.ons.gov.uk/ons/guide-method/geography/products/names--codes-and-look-ups/names-and-codes-listings/names-and-codes-for-administrative-geography/index.html,Thanet District Council,19/02/2013,331841,376.37,Kent County Council (Kcs),KCC003,Director of Operational Services,Revenue,Premises Related Expenditure
http://www.ons.gov.uk/ons/guide-method/geography/products/names--codes-and-look-ups/names-and-codes-listings/names-and-codes-for-administrative-geography/index.html,Thanet District Council,19/02/2013,331842,385.96,Kent County Council (Kcs),KCC003,Director of Operational Services,Revenue,Premises Related Expenditure
http://www.ons.gov.uk/ons/guide-method/geography/products/names--codes-and-look-ups/names-and-codes-listings/names-and-codes-for-administrative-geography/index.html,Thanet District Council,19/02/2013,331843,1574.33,Kent County Council (Kcs),KCC003,Director of Operational Services,Revenue,Premises Related Expenditure
http://www.ons.gov.uk/ons/guide-method/geography/products/names--codes-and-look-ups/names-and-codes-listings/names-and-codes-for-administrative-geography/index.html,Thanet District Council,19/02/2013,331844,605.32,Kent County Council (Kcs),KCC003,Director of Operational Services,Revenue,Premises Related Expenditure
http://www.ons.gov.uk/ons/guide-method/geography/products/names--codes-and-look-ups/names-and-codes-listings/names-and-codes-for-administrative-geography/index.html,Thanet District Council,19/02/2013,331866,16052.19,Kent County Council (Kcs),KCC003,Director of Operational Services,Revenue,Premises Related Expenditure
http://www.ons.gov.uk/ons/guide-method/geography/products/names--codes-and-look-ups/names-and-codes-listings/names-and-codes-for-administrative-geography/index.html,Thanet District Council,19/02/2013,332075,450.11,Kent County Council (Kcs),KCC003,Director of Operational Services,Revenue,Supplies and Services
http://www.ons.gov.uk/ons/guide-method/geography/products/names--codes-and-look-ups/names-and-codes-listings/names-and-codes-for-administrative-geography/index.html,Thanet District Council,19/02/2013,331734,425,Knights Removals & Storage,KNI003,Director of Operational Services,Revenue,Supplies and Services
http://www.ons.gov.uk/ons/guide-method/geography/products/names--codes-and-look-ups/names-and-codes-listings/names-and-codes-for-administrative-geography/index.html,Thanet District Council,19/02/2013,331373,486.08,Landscape Supply Company,LAN014,Director of Operational Services,Revenue,Supplies and Services
http://www.ons.gov.uk/ons/guide-method/geography/products/names--codes-and-look-ups/names-and-codes-listings/names-and-codes-for-administrative-geography/index.html,Thanet District Council,19/02/2013,331590,310,Ling Metals Limited,LIN004,Director of Operational Services,Revenue,Premises Related Expenditure
http://www.ons.gov.uk/ons/guide-method/geography/products/names--codes-and-look-ups/names-and-codes-listings/names-and-codes-for-administrative-geography/index.html,Thanet District Council,19/02/2013,332082,690,Lydia Slee,SLE001,Director of Corporate Services and Transformation,Revenue,Supplies and Services
http://www.ons.gov.uk/ons/guide-method/geography/products/names--codes-and-look-ups/names-and-codes-listings/names-and-codes-for-administrative-geography/index.html,Thanet District Council,19/02/2013,331550,2000,Manak Solicitors Llp,MAN025,Director of Corporate Services and Transformation,Revenue,Supplies and Services
http://www.ons.gov.uk/ons/guide-method/geography/products/names--codes-and-look-ups/names-and-codes-listings/names-and-codes-for-administrative-geography/index.html,Thanet District Council,19/02/2013,331880,1254,Michael Page Finance,PAG008,Director of Corporate Services and Transformation,Revenue,Employees
http://www.ons.gov.uk/ons/guide-method/geography/products/names--codes-and-look-ups/names-and-codes-listings/names-and-codes-for-administrative-geography/index.html,Thanet District Council,19/02/2013,331881,1339.5,Michael Page Finance,PAG008,Director of Corporate Services and Transformation,Revenue,Employees
http://www.ons.gov.uk/ons/guide-method/geography/products/names--codes-and-look-ups/names-and-codes-listings/names-and-codes-for-administrative-geography/index.html,Thanet District Council,19/02/2013,330589,300,Mr N F Powley,POW019,Director of Community Services,Revenue,Supplies and Services
http://www.ons.gov.uk/ons/guide-method/geography/products/names--codes-and-look-ups/names-and-codes-listings/names-and-codes-for-administrative-geography/index.html,Thanet District Council,19/02/2013,331112,27900,N E Murray Marine Contractors,MUR001,Director of Operational Services,Revenue,Third Party Payments
http://www.ons.gov.uk/ons/guide-method/geography/products/names--codes-and-look-ups/names-and-codes-listings/names-and-codes-for-administrative-geography/index.html,Thanet District Council,19/02/2013,331980,332.5,Nagels Uk Ltd,NAG001,Director of Operational Services,Revenue,Supplies and Services
http://www.ons.gov.uk/ons/guide-method/geography/products/names--codes-and-look-ups/names-and-codes-listings/names-and-codes-for-administrative-geography/index.html,Thanet District Council,19/02/2013,331732,486,National Boat Shows Ltd,NAT001,Director of Operational Services,Revenue,Supplies and Services
http://www.ons.gov.uk/ons/guide-method/geography/products/names--codes-and-look-ups/names-and-codes-listings/names-and-codes-for-administrative-geography/index.html,Thanet District Council,19/02/2013,331567,1500,Nescot,NES002,Director of Corporate Services and Transformation,Revenue,Supplies and Services
http://www.ons.gov.uk/ons/guide-method/geography/products/names--codes-and-look-ups/names-and-codes-listings/names-and-codes-for-administrative-geography/index.html,Thanet District Council,19/02/2013,331864,1065.95,Northgate Inf Solutions Uk Ltd,NOR018,East Kent Shared Services,Revenue,Supplies and Services
http://www.ons.gov.uk/ons/guide-method/geography/products/names--codes-and-look-ups/names-and-codes-listings/names-and-codes-for-administrative-geography/index.html,Thanet District Council,19/02/2013,331780,225,Ocs Group Uk Ltd T/A Cannon,OCS003,Director of Operational Services,Revenue,Premises Related Expenditure
http://www.ons.gov.uk/ons/guide-method/geography/products/names--codes-and-look-ups/names-and-codes-listings/names-and-codes-for-administrative-geography/index.html,Thanet District Council,19/02/2013,331363,9709,Park Insurance Services,PAR066,Director of Community Services,Revenue,Supplies and Services
http://www.ons.gov.uk/ons/guide-method/geography/products/names--codes-and-look-ups/names-and-codes-listings/names-and-codes-for-administrative-geography/index.html,Thanet District Council,19/02/2013,331976,906.25,Pearson Gore,PEA002,Director of Community Services,Revenue,Supplies and Services
http://www.ons.gov.uk/ons/guide-method/geography/products/names--codes-and-look-ups/names-and-codes-listings/names-and-codes-for-administrative-geography/index.html,Thanet District Council,19/02/2013,331978,513.53,Pearson Gore,PEA002,Director of Community Services,Revenue,Supplies and Services
http://www.ons.gov.uk/ons/guide-method/geography/products/names--codes-and-look-ups/names-and-codes-listings/names-and-codes-for-administrative-geography/index.html,Thanet District Council,19/02/2013,331405,910,Perception Dynamics Ltd,PER019,East Kent Shared Services,Revenue,Supplies and Services
http://www.ons.gov.uk/ons/guide-method/geography/products/names--codes-and-look-ups/names-and-codes-listings/names-and-codes-for-administrative-geography/index.html,Thanet District Council,19/02/2013,329091,41639.16,Profile Security Services Limited,PRO018,Director of Operational Services,Revenue,Supplies and Services
http://www.ons.gov.uk/ons/guide-method/geography/products/names--codes-and-look-ups/names-and-codes-listings/names-and-codes-for-administrative-geography/index.html,Thanet District Council,19/02/2013,331122,41639.16,Profile Security Services Limited,PRO018,Director of Operational Services,Revenue,Supplies and Services
http://www.ons.gov.uk/ons/guide-method/geography/products/names--codes-and-look-ups/names-and-codes-listings/names-and-codes-for-administrative-geography/index.html,Thanet District Council,19/02/2013,331754,437.5,R Cannon,CAN007,Director of Operational Services,Revenue,Supplies and Services
http://www.ons.gov.uk/ons/guide-method/geography/products/names--codes-and-look-ups/names-and-codes-listings/names-and-codes-for-administrative-geography/index.html,Thanet District Council,19/02/2013,331560,1310,Rackspace Managed Hosting Ltd,RAC004,East Kent Shared Services,Revenue,Supplies and Services
http://www.ons.gov.uk/ons/guide-method/geography/products/names--codes-and-look-ups/names-and-codes-listings/names-and-codes-for-administrative-geography/index.html,Thanet District Council,19/02/2013,N/A,443.52,REDACTED PERSONAL DATA,N/A,Director of Operational Services,Revenue,Transport Related Expenditure
http://www.ons.gov.uk/ons/guide-method/geography/products/names--codes-and-look-ups/names-and-codes-listings/names-and-codes-for-administrative-geography/index.html,Thanet District Council,19/02/2013,N/A,935.67,REDACTED PERSONAL DATA,N/A,East Kent Shared Services,Revenue,Transport Related Expenditure
http://www.ons.gov.uk/ons/guide-method/geography/products/names--codes-and-look-ups/names-and-codes-listings/names-and-codes-for-administrative-geography/index.html,Thanet District Council,19/02/2013,N/A,341.17,REDACTED PERSONAL DATA,N/A,Director of Operational Services,Revenue,Transport Related Expenditure
http://www.ons.gov.uk/ons/guide-method/geography/products/names--codes-and-look-ups/names-and-codes-listings/names-and-codes-for-administrative-geography/index.html,Thanet District Council,19/02/2013,N/A,299.47,REDACTED PERSONAL DATA,N/A,East Kent Shared Services,Revenue,Transport Related Expenditure
http://www.ons.gov.uk/ons/guide-method/geography/products/names--codes-and-look-ups/names-and-codes-listings/names-and-codes-for-administrative-geography/index.html,Thanet District Council,19/02/2013,N/A,274.83,REDACTED PERSONAL DATA,N/A,Director of Community Services,Revenue,Transport Related Expenditure
http://www.ons.gov.uk/ons/guide-method/geography/products/names--codes-and-look-ups/names-and-codes-listings/names-and-codes-for-administrative-geography/index.html,Thanet District Council,19/02/2013,N/A,351.6,REDACTED PERSONAL DATA,N/A,Director of Corporate Services and Transformation,Revenue,Transport Related Expenditure
http://www.ons.gov.uk/ons/guide-method/geography/products/names--codes-and-look-ups/names-and-codes-listings/names-and-codes-for-administrative-geography/index.html,Thanet District Council,19/02/2013,N/A,283.36,REDACTED PERSONAL DATA,N/A,Director of Community Services,Revenue,Transport Related Expenditure
http://www.ons.gov.uk/ons/guide-method/geography/products/names--codes-and-look-ups/names-and-codes-listings/names-and-codes-for-administrative-geography/index.html,Thanet District Council,19/02/2013,N/A,363.92,REDACTED PERSONAL DATA,N/A,Director of Corporate Services and Transformation,Revenue,Transport Related Expenditure
http://www.ons.gov.uk/ons/guide-method/geography/products/names--codes-and-look-ups/names-and-codes-listings/names-and-codes-for-administrative-geography/index.html,Thanet District Council,19/02/2013,N/A,302.32,REDACTED PERSONAL DATA,N/A,Director of Community Services,Revenue,Transport Related Expenditure
http://www.ons.gov.uk/ons/guide-method/geography/products/names--codes-and-look-ups/names-and-codes-listings/names-and-codes-for-administrative-geography/index.html,Thanet District Council,19/02/2013,N/A,621.69,REDACTED PERSONAL DATA,N/A,Director of Operational Services,Revenue,Transport Related Expenditure
http://www.ons.gov.uk/ons/guide-method/geography/products/names--codes-and-look-ups/names-and-codes-listings/names-and-codes-for-administrative-geography/index.html,Thanet District Council,19/02/2013,N/A,463.43,REDACTED PERSONAL DATA,N/A,Director of Corporate Services and Transformation,Revenue,Transport Related Expenditure
http://www.ons.gov.uk/ons/guide-method/geography/products/names--codes-and-look-ups/names-and-codes-listings/names-and-codes-for-administrative-geography/index.html,Thanet District Council,19/02/2013,N/A,346.86,REDACTED PERSONAL DATA,N/A,Director of Corporate Services and Transformation,Revenue,Transport Related Expenditure
http://www.ons.gov.uk/ons/guide-method/geography/products/names--codes-and-look-ups/names-and-codes-listings/names-and-codes-for-administrative-geography/index.html,Thanet District Council,19/02/2013,N/A,336.43,REDACTED PERSONAL DATA,N/A,Director of Operational Services,Revenue,Transport Related Expenditure
http://www.ons.gov.uk/ons/guide-method/geography/products/names--codes-and-look-ups/names-and-codes-listings/names-and-codes-for-administrative-geography/index.html,Thanet District Council,19/02/2013,N/A,301.17,REDACTED PERSONAL DATA,N/A,East Kent Shared Services,Revenue,Transport Related Expenditure
http://www.ons.gov.uk/ons/guide-method/geography/products/names--codes-and-look-ups/names-and-codes-listings/names-and-codes-for-administrative-geography/index.html,Thanet District Council,19/02/2013,N/A,167.9,REDACTED PERSONAL DATA,N/A,East Kent Shared Services,Revenue,Supplies and Services
http://www.ons.gov.uk/ons/guide-method/geography/products/names--codes-and-look-ups/names-and-codes-listings/names-and-codes-for-administrative-geography/index.html,Thanet District Council,19/02/2013,N/A,226.6,REDACTED PERSONAL DATA,N/A,East Kent Shared Services,Revenue,Transport Related Expenditure
http://www.ons.gov.uk/ons/guide-method/geography/products/names--codes-and-look-ups/names-and-codes-listings/names-and-codes-for-administrative-geography/index.html,Thanet District Council,19/02/2013,N/A,535.45,REDACTED PERSONAL DATA,N/A,East Kent Shared Services,Revenue,Transport Related Expenditure
http://www.ons.gov.uk/ons/guide-method/geography/products/names--codes-and-look-ups/names-and-codes-listings/names-and-codes-for-administrative-geography/index.html,Thanet District Council,19/02/2013,331827,2381.48,Royal Mail,ROY004,Director of Corporate Services and Transformation,Revenue,Supplies and Services
http://www.ons.gov.uk/ons/guide-method/geography/products/names--codes-and-look-ups/names-and-codes-listings/names-and-codes-for-administrative-geography/index.html,Thanet District Council,19/02/2013,331527,2945.66,Santander Uk Plc,SAN019,East Kent Shared Services,Revenue,Supplies and Services
http://www.ons.gov.uk/ons/guide-method/geography/products/names--codes-and-look-ups/names-and-codes-listings/names-and-codes-for-administrative-geography/index.html,Thanet District Council,19/02/2013,331587,2000,Sarah Shepherd,SHE022,Director of Community Services,Revenue,Supplies and Services
http://www.ons.gov.uk/ons/guide-method/geography/products/names--codes-and-look-ups/names-and-codes-listings/names-and-codes-for-administrative-geography/index.html,Thanet District Council,19/02/2013,331103,1015.02,Screwfix Direct Ltd,SCR001,Director of Operational Services,Revenue,Premises Related Expenditure
http://www.ons.gov.uk/ons/guide-method/geography/products/names--codes-and-look-ups/names-and-codes-listings/names-and-codes-for-administrative-geography/index.html,Thanet District Council,19/02/2013,331525,229.98,Serco Ltd,SER002,Director of Operational Services,Revenue,Premises Related Expenditure
http://www.ons.gov.uk/ons/guide-method/geography/products/names--codes-and-look-ups/names-and-codes-listings/names-and-codes-for-administrative-geography/index.html,Thanet District Council,19/02/2013,331114,2200,Shoreline Surveys Limited,SHO001,Director of Operational Services,Revenue,Premises Related Expenditure
http://www.ons.gov.uk/ons/guide-method/geography/products/names--codes-and-look-ups/names-and-codes-listings/names-and-codes-for-administrative-geography/index.html,Thanet District Council,19/02/2013,330685,288.4,Sitexorbis Ltd,SIT007,Director of Community Services,Revenue,Supplies and Services
http://www.ons.gov.uk/ons/guide-method/geography/products/names--codes-and-look-ups/names-and-codes-listings/names-and-codes-for-administrative-geography/index.html,Thanet District Council,19/02/2013,330763,57.12,Solid Stamps Ltd,SOL002,Director of Community Services,Revenue,Supplies and Services
http://www.ons.gov.uk/ons/guide-method/geography/products/names--codes-and-look-ups/names-and-codes-listings/names-and-codes-for-administrative-geography/index.html,Thanet District Council,19/02/2013,330763,205.09,Solid Stamps Ltd,SOL002,East Kent Shared Services,Revenue,Supplies and Services
http://www.ons.gov.uk/ons/guide-method/geography/products/names--codes-and-look-ups/names-and-codes-listings/names-and-codes-for-administrative-geography/index.html,Thanet District Council,19/02/2013,331952,7055,South East Building Company Limited,SEB001,Director of Corporate Services and Transformation,Balance Sheet,Long Term Assets
http://www.ons.gov.uk/ons/guide-method/geography/products/names--codes-and-look-ups/names-and-codes-listings/names-and-codes-for-administrative-geography/index.html,Thanet District Council,19/02/2013,331932,5775,South East Wetrooms Limited,SEW002,Director of Corporate Services and Transformation,Balance Sheet,Long Term Assets
http://www.ons.gov.uk/ons/guide-method/geography/products/names--codes-and-look-ups/names-and-codes-listings/names-and-codes-for-administrative-geography/index.html,Thanet District Council,19/02/2013,331964,263.73,Southern Electric,SEL007,Director of Operational Services,Revenue,Premises Related Expenditure
http://www.ons.gov.uk/ons/guide-method/geography/products/names--codes-and-look-ups/names-and-codes-listings/names-and-codes-for-administrative-geography/index.html,Thanet District Council,19/02/2013,331922,495.51,Southern Water,SWA001,Director of Operational Services,Revenue,Premises Related Expenditure
http://www.ons.gov.uk/ons/guide-method/geography/products/names--codes-and-look-ups/names-and-codes-listings/names-and-codes-for-administrative-geography/index.html,Thanet District Council,19/02/2013,331923,3445.18,Southern Water,SWA001,Director of Operational Services,Revenue,Premises Related Expenditure
http://www.ons.gov.uk/ons/guide-method/geography/products/names--codes-and-look-ups/names-and-codes-listings/names-and-codes-for-administrative-geography/index.html,Thanet District Council,19/02/2013,331924,341.64,Southern Water,SWA001,Director of Operational Services,Revenue,Premises Related Expenditure
http://www.ons.gov.uk/ons/guide-method/geography/products/names--codes-and-look-ups/names-and-codes-listings/names-and-codes-for-administrative-geography/index.html,Thanet District Council,19/02/2013,331926,1531.06,Southern Water,SWA001,Director of Operational Services,Revenue,Premises Related Expenditure
http://www.ons.gov.uk/ons/guide-method/geography/products/names--codes-and-look-ups/names-and-codes-listings/names-and-codes-for-administrative-geography/index.html,Thanet District Council,19/02/2013,331928,45.16,Southern Water,SWA001,Director of Community Services,Revenue,Premises Related Expenditure
http://www.ons.gov.uk/ons/guide-method/geography/products/names--codes-and-look-ups/names-and-codes-listings/names-and-codes-for-administrative-geography/index.html,Thanet District Council,19/02/2013,331928,406.41,Southern Water,SWA001,Director of Operational Services,Revenue,Premises Related Expenditure
http://www.ons.gov.uk/ons/guide-method/geography/products/names--codes-and-look-ups/names-and-codes-listings/names-and-codes-for-administrative-geography/index.html,Thanet District Council,19/02/2013,331934,1754.96,Southern Water,SWA001,Director of Operational Services,Revenue,Premises Related Expenditure
http://www.ons.gov.uk/ons/guide-method/geography/products/names--codes-and-look-ups/names-and-codes-listings/names-and-codes-for-administrative-geography/index.html,Thanet District Council,19/02/2013,331943,265.79,Southern Water,SWA001,Director of Operational Services,Revenue,Premises Related Expenditure
http://www.ons.gov.uk/ons/guide-method/geography/products/names--codes-and-look-ups/names-and-codes-listings/names-and-codes-for-administrative-geography/index.html,Thanet District Council,19/02/2013,332099,295.2,Southern Water,SWA004,Director of Operational Services,Revenue,Premises Related Expenditure
http://www.ons.gov.uk/ons/guide-method/geography/products/names--codes-and-look-ups/names-and-codes-listings/names-and-codes-for-administrative-geography/index.html,Thanet District Council,19/02/2013,331577,3001.72,Sparshatts Of Kent Ltd,SPA008,Director of Operational Services,Revenue,Transport Related Expenditure
http://www.ons.gov.uk/ons/guide-method/geography/products/names--codes-and-look-ups/names-and-codes-listings/names-and-codes-for-administrative-geography/index.html,Thanet District Council,19/02/2013,331100,325,Structural & Weld Testing Ltd,STR035,Director of Operational Services,Revenue,Employees
http://www.ons.gov.uk/ons/guide-method/geography/products/names--codes-and-look-ups/names-and-codes-listings/names-and-codes-for-administrative-geography/index.html,Thanet District Council,19/02/2013,331512,1183.33,Thanet Leisureforce Ltd,TLF001,Director of Community Services,Revenue,Supplies and Services
http://www.ons.gov.uk/ons/guide-method/geography/products/names--codes-and-look-ups/names-and-codes-listings/names-and-codes-for-administrative-geography/index.html,Thanet District Council,19/02/2013,331513,217.83,Thanet Leisureforce Ltd,TLF001,Director of Community Services,Revenue,Supplies and Services
http://www.ons.gov.uk/ons/guide-method/geography/products/names--codes-and-look-ups/names-and-codes-listings/names-and-codes-for-administrative-geography/index.html,Thanet District Council,19/02/2013,331455,632.7,Thanet Waste Services Ltd,TWA001,Director of Operational Services,Revenue,Third Party Payments
http://www.ons.gov.uk/ons/guide-method/geography/products/names--codes-and-look-ups/names-and-codes-listings/names-and-codes-for-administrative-geography/index.html,Thanet District Council,19/02/2013,332066,12118.02,Thomas Sinden Ltd,SIN009,Director of Corporate Services and Transformation,Balance Sheet,Long Term Assets
http://www.ons.gov.uk/ons/guide-method/geography/products/names--codes-and-look-ups/names-and-codes-listings/names-and-codes-for-administrative-geography/index.html,Thanet District Council,19/02/2013,331733,2312.92,Thorley Taverns Ltd,THO001,Director of Operational Services,Revenue,Supplies and Services
http://www.ons.gov.uk/ons/guide-method/geography/products/names--codes-and-look-ups/names-and-codes-listings/names-and-codes-for-administrative-geography/index.html,Thanet District Council,19/02/2013,332019,1235.27,Uk Power Networks (Operations) Ltd,UKP001,Director of Corporate Services and Transformation,Balance Sheet,Long Term Assets
http://www.ons.gov.uk/ons/guide-method/geography/products/names--codes-and-look-ups/names-and-codes-listings/names-and-codes-for-administrative-geography/index.html,Thanet District Council,19/02/2013,331382,416,Unikent,UNI003,Director of Community Services,Revenue,Supplies and Services
http://www.ons.gov.uk/ons/guide-method/geography/products/names--codes-and-look-ups/names-and-codes-listings/names-and-codes-for-administrative-geography/index.html,Thanet District Council,19/02/2013,331575,270.88,Veolia Es (Uk) Ltd,VEO001,Director of Corporate Services and Transformation,Balance Sheet,Current Assets
http://www.ons.gov.uk/ons/guide-method/geography/products/names--codes-and-look-ups/names-and-codes-listings/names-and-codes-for-administrative-geography/index.html,Thanet District Council,19/02/2013,331575,1264.95,Veolia Es (Uk) Ltd,VEO001,Director of Operational Services,Revenue,Premises Related Expenditure
http://www.ons.gov.uk/ons/guide-method/geography/products/names--codes-and-look-ups/names-and-codes-listings/names-and-codes-for-administrative-geography/index.html,Thanet District Council,19/02/2013,331576,452.56,Veolia Es (Uk) Ltd,VEO001,Director of Operational Services,Revenue,Premises Related Expenditure
http://www.ons.gov.uk/ons/guide-method/geography/products/names--codes-and-look-ups/names-and-codes-listings/names-and-codes-for-administrative-geography/index.html,Thanet District Council,19/02/2013,331927,528,Victoria Osler,OSL002,Director of Community Services,Revenue,Supplies and Services
http://www.ons.gov.uk/ons/guide-method/geography/products/names--codes-and-look-ups/names-and-codes-listings/names-and-codes-for-administrative-geography/index.html,Thanet District Council,19/02/2013,331579,641.14,Viridor Waste Management Ltd,VIR003,Director of Operational Services,Revenue,Supplies and Services
http://www.ons.gov.uk/ons/guide-method/geography/products/names--codes-and-look-ups/names-and-codes-listings/names-and-codes-for-administrative-geography/index.html,Thanet District Council,19/02/2013,331722,270,Viridor Waste Management Ltd,VIR003,Director of Operational Services,Revenue,Third Party Payments
http://www.ons.gov.uk/ons/guide-method/geography/products/names--codes-and-look-ups/names-and-codes-listings/names-and-codes-for-administrative-geography/index.html,Thanet District Council,19/02/2013,331101,1600,W Brazil & Bros,BRA001,Director of Operational Services,Revenue,Premises Related Expenditure
http://www.ons.gov.uk/ons/guide-method/geography/products/names--codes-and-look-ups/names-and-codes-listings/names-and-codes-for-administrative-geography/index.html,Thanet District Council,19/02/2013,331565,1153.74,W Brazil & Bros,BRA001,Director of Operational Services,Revenue,Premises Related Expenditure
http://www.ons.gov.uk/ons/guide-method/geography/products/names--codes-and-look-ups/names-and-codes-listings/names-and-codes-for-administrative-geography/index.html,Thanet District Council,19/02/2013,331566,270,W Brazil & Bros,BRA001,Director of Operational Services,Revenue,Supplies and Services
http://www.ons.gov.uk/ons/guide-method/geography/products/names--codes-and-look-ups/names-and-codes-listings/names-and-codes-for-administrative-geography/index.html,Thanet District Council,19/02/2013,331171,9991.95,Waste Consulting Llp,WAS005,Director of Operational Services,Revenue,Supplies and Services
http://www.ons.gov.uk/ons/guide-method/geography/products/names--codes-and-look-ups/names-and-codes-listings/names-and-codes-for-administrative-geography/index.html,Thanet District Council,19/02/2013,331095,1683.64,Wise Handling Limited,WIS001,Director of Operational Services,Revenue,Supplies and Services
http://www.ons.gov.uk/ons/guide-method/geography/products/names--codes-and-look-ups/names-and-codes-listings/names-and-codes-for-administrative-geography/index.html,Thanet District Council,19/02/2013,331741,1975.33,Xma Ltd,XMA001,East Kent Shared Services,Revenue,Supplies and Services
http://www.ons.gov.uk/ons/guide-method/geography/products/names--codes-and-look-ups/names-and-codes-listings/names-and-codes-for-administrative-geography/index.html,Thanet District Council,22/02/2013,332303,3.2,Corporate Direct (Europe) Ltd,COR006,East Kent Shared Services,Revenue,Supplies and Services
http://www.ons.gov.uk/ons/guide-method/geography/products/names--codes-and-look-ups/names-and-codes-listings/names-and-codes-for-administrative-geography/index.html,Thanet District Council,26/02/2013,PC3515,672,AM Academy Ltd,N/A,Director of Operational Services,Revenue,Supplies and Services
http://www.ons.gov.uk/ons/guide-method/geography/products/names--codes-and-look-ups/names-and-codes-listings/names-and-codes-for-administrative-geography/index.html,Thanet District Council,26/02/2013,PC3516,672,AM Academy Ltd,N/A,Director of Operational Services,Revenue,Supplies and Services
http://www.ons.gov.uk/ons/guide-method/geography/products/names--codes-and-look-ups/names-and-codes-listings/names-and-codes-for-administrative-geography/index.html,Thanet District Council,26/02/2013,PC3632,262.02,Amazon,N/A,East Kent Shared Services,Revenue,Supplies and Services
http://www.ons.gov.uk/ons/guide-method/geography/products/names--codes-and-look-ups/names-and-codes-listings/names-and-codes-for-administrative-geography/index.html,Thanet District Council,26/02/2013,PC3543,367.48,Barcode Mania,N/A,Director of Operational Services,Revenue,Supplies and Services
http://www.ons.gov.uk/ons/guide-method/geography/products/names--codes-and-look-ups/names-and-codes-listings/names-and-codes-for-administrative-geography/index.html,Thanet District Council,26/02/2013,PC3518,350,Crimson Communications,N/A,Director of Corporate Services and Transformation,Revenue,Supplies and Services
http://www.ons.gov.uk/ons/guide-method/geography/products/names--codes-and-look-ups/names-and-codes-listings/names-and-codes-for-administrative-geography/index.html,Thanet District Council,26/02/2013,PC3611,847.88,Dropbox,N/A,East Kent Shared Services,Revenue,Supplies and Services
http://www.ons.gov.uk/ons/guide-method/geography/products/names--codes-and-look-ups/names-and-codes-listings/names-and-codes-for-administrative-geography/index.html,Thanet District Council,26/02/2013,PC3577,232.4,First Aid for Less,N/A,Director of Operational Services,Revenue,Supplies and Services
http://www.ons.gov.uk/ons/guide-method/geography/products/names--codes-and-look-ups/names-and-codes-listings/names-and-codes-for-administrative-geography/index.html,Thanet District Council,26/02/2013,PC3511,1056,HM Courts Service,N/A,East Kent Shared Services,Revenue,Supplies and Services
http://www.ons.gov.uk/ons/guide-method/geography/products/names--codes-and-look-ups/names-and-codes-listings/names-and-codes-for-administrative-geography/index.html,Thanet District Council,26/02/2013,PC3512,447,HM Courts Service,N/A,East Kent Shared Services,Revenue,Supplies and Services
http://www.ons.gov.uk/ons/guide-method/geography/products/names--codes-and-look-ups/names-and-codes-listings/names-and-codes-for-administrative-geography/index.html,Thanet District Council,26/02/2013,PC3642,375,HM Courts Service,N/A,East Kent Shared Services,Revenue,Supplies and Services
http://www.ons.gov.uk/ons/guide-method/geography/products/names--codes-and-look-ups/names-and-codes-listings/names-and-codes-for-administrative-geography/index.html,Thanet District Council,26/02/2013,PC3647,1215,HM Courts Service,N/A,East Kent Shared Services,Revenue,Supplies and Services
http://www.ons.gov.uk/ons/guide-method/geography/products/names--codes-and-look-ups/names-and-codes-listings/names-and-codes-for-administrative-geography/index.html,Thanet District Council,26/02/2013,PC3649,2199,HM Courts Service,N/A,East Kent Shared Services,Revenue,Supplies and Services
http://www.ons.gov.uk/ons/guide-method/geography/products/names--codes-and-look-ups/names-and-codes-listings/names-and-codes-for-administrative-geography/index.html,Thanet District Council,26/02/2013,PC3650,693,HM Courts Service,N/A,East Kent Shared Services,Revenue,Supplies and Services
http://www.ons.gov.uk/ons/guide-method/geography/products/names--codes-and-look-ups/names-and-codes-listings/names-and-codes-for-administrative-geography/index.html,Thanet District Council,26/02/2013,PC3562,350,J H Lifting Gear Hire,N/A,Director of Operational Services,Revenue,Premises Related Expenditure
http://www.ons.gov.uk/ons/guide-method/geography/products/names--codes-and-look-ups/names-and-codes-listings/names-and-codes-for-administrative-geography/index.html,Thanet District Council,26/02/2013,PC3517,243.98,Mats Nationwide Ltd,N/A,Director of Operational Services,Revenue,Supplies and Services
http://www.ons.gov.uk/ons/guide-method/geography/products/names--codes-and-look-ups/names-and-codes-listings/names-and-codes-for-administrative-geography/index.html,Thanet District Council,26/02/2013,PC3653,450,PMG Ltd,N/A,East Kent Shared Services,Revenue,Supplies and Services
http://www.ons.gov.uk/ons/guide-method/geography/products/names--codes-and-look-ups/names-and-codes-listings/names-and-codes-for-administrative-geography/index.html,Thanet District Council,26/02/2013,PC3563,480,Think Publishing,N/A,Director of Operational Services,Revenue,Supplies and Services
http://www.ons.gov.uk/ons/guide-method/geography/products/names--codes-and-look-ups/names-and-codes-listings/names-and-codes-for-administrative-geography/index.html,Thanet District Council,26/02/2013,PC3621,571.67,Travelodge,N/A,Director of Community Services,Revenue,Supplies and Services
http://www.ons.gov.uk/ons/guide-method/geography/products/names--codes-and-look-ups/names-and-codes-listings/names-and-codes-for-administrative-geography/index.html,Thanet District Council,26/02/2013,PC3686,1.5,Travelodge,N/A,Director of Community Services,Revenue,Supplies and Services
http://www.ons.gov.uk/ons/guide-method/geography/products/names--codes-and-look-ups/names-and-codes-listings/names-and-codes-for-administrative-geography/index.html,Thanet District Council,26/02/2013,PC3687,573.33,Travelodge,N/A,Director of Community Services,Revenue,Supplies and Services
http://www.ons.gov.uk/ons/guide-method/geography/products/names--codes-and-look-ups/names-and-codes-listings/names-and-codes-for-administrative-geography/index.html,Thanet District Council,26/02/2013,PC3688,1.5,Travelodge,N/A,Director of Community Services,Revenue,Supplies and Services
http://www.ons.gov.uk/ons/guide-method/geography/products/names--codes-and-look-ups/names-and-codes-listings/names-and-codes-for-administrative-geography/index.html,Thanet District Council,26/02/2013,PC3689,-500,Travelodge,N/A,Director of Community Services,Revenue,Supplies and Services
http://www.ons.gov.uk/ons/guide-method/geography/products/names--codes-and-look-ups/names-and-codes-listings/names-and-codes-for-administrative-geography/index.html,Thanet District Council,26/02/2013,PC3507,200,Webtis,N/A,East Kent Shared Services,Revenue,Transport Related Expenditure
http://www.ons.gov.uk/ons/guide-method/geography/products/names--codes-and-look-ups/names-and-codes-listings/names-and-codes-for-administrative-geography/index.html,Thanet District Council,26/02/2013,PC3508,56.5,Webtis,N/A,Director of Corporate Services and Transformation,Revenue,Transport Related Expenditure
http://www.ons.gov.uk/ons/guide-method/geography/products/names--codes-and-look-ups/names-and-codes-listings/names-and-codes-for-administrative-geography/index.html,Thanet District Council,26/02/2013,PC3594,146,Webtis,N/A,East Kent Shared Services,Revenue,Transport Related Expenditure
http://www.ons.gov.uk/ons/guide-method/geography/products/names--codes-and-look-ups/names-and-codes-listings/names-and-codes-for-administrative-geography/index.html,Thanet District Council,26/02/2013,PC3595,35.5,Webtis,N/A,Director of Corporate Services and Transformation,Revenue,Transport Related Expenditure
http://www.ons.gov.uk/ons/guide-method/geography/products/names--codes-and-look-ups/names-and-codes-listings/names-and-codes-for-administrative-geography/index.html,Thanet District Council,26/02/2013,PC3596,56.5,Webtis,N/A,Director of Corporate Services and Transformation,Revenue,Transport Related Expenditure
http://www.ons.gov.uk/ons/guide-method/geography/products/names--codes-and-look-ups/names-and-codes-listings/names-and-codes-for-administrative-geography/index.html,Thanet District Council,26/02/2013,PC3597,202.8,Webtis,N/A,Director of Corporate Services and Transformation,Revenue,Transport Related Expenditure
http://www.ons.gov.uk/ons/guide-method/geography/products/names--codes-and-look-ups/names-and-codes-listings/names-and-codes-for-administrative-geography/index.html,Thanet District Council,27/02/2013,332078,568.16,Adecco Uk Ltd,ADE005,Director of Corporate Services and Transformation,Revenue,Employees
http://www.ons.gov.uk/ons/guide-method/geography/products/names--codes-and-look-ups/names-and-codes-listings/names-and-codes-for-administrative-geography/index.html,Thanet District Council,27/02/2013,331387,280,Albion Fencing Kent Ltd,ALB005,Director of Operational Services,Revenue,Premises Related Expenditure
http://www.ons.gov.uk/ons/guide-method/geography/products/names--codes-and-look-ups/names-and-codes-listings/names-and-codes-for-administrative-geography/index.html,Thanet District Council,27/02/2013,332420,9077.08,Bramling Construction Ltd,BRA020,Director of Corporate Services and Transformation,Balance Sheet,Long Term Assets
http://www.ons.gov.uk/ons/guide-method/geography/products/names--codes-and-look-ups/names-and-codes-listings/names-and-codes-for-administrative-geography/index.html,Thanet District Council,27/02/2013,331529,680,Broadstairs Metal Craft,BRO058,Director of Operational Services,Revenue,Premises Related Expenditure
http://www.ons.gov.uk/ons/guide-method/geography/products/names--codes-and-look-ups/names-and-codes-listings/names-and-codes-for-administrative-geography/index.html,Thanet District Council,27/02/2013,331895,450,Canterbury City Council,CAN004,Director of Corporate Services and Transformation,Revenue,Employees
http://www.ons.gov.uk/ons/guide-method/geography/products/names--codes-and-look-ups/names-and-codes-listings/names-and-codes-for-administrative-geography/index.html,Thanet District Council,27/02/2013,331937,334.75,Casement Signs And Traffic,CAS001,Director of Operational Services,Revenue,Premises Related Expenditure
http://www.ons.gov.uk/ons/guide-method/geography/products/names--codes-and-look-ups/names-and-codes-listings/names-and-codes-for-administrative-geography/index.html,Thanet District Council,27/02/2013,332070,270,Channel Commercials Plc,CCO001,Director of Operational Services,Revenue,Transport Related Expenditure
http://www.ons.gov.uk/ons/guide-method/geography/products/names--codes-and-look-ups/names-and-codes-listings/names-and-codes-for-administrative-geography/index.html,Thanet District Council,27/02/2013,332438,283.82,Channel Commercials Plc,CCO001,Director of Operational Services,Revenue,Transport Related Expenditure
http://www.ons.gov.uk/ons/guide-method/geography/products/names--codes-and-look-ups/names-and-codes-listings/names-and-codes-for-administrative-geography/index.html,Thanet District Council,27/02/2013,332354,230,Chatterbox Ltd,CHA006,East Kent Shared Services,Revenue,Supplies and Services
http://www.ons.gov.uk/ons/guide-method/geography/products/names--codes-and-look-ups/names-and-codes-listings/names-and-codes-for-administrative-geography/index.html,Thanet District Council,27/02/2013,332011,720,Civica Uk Ltd,CIV003,East Kent Shared Services,Revenue,Supplies and Services
http://www.ons.gov.uk/ons/guide-method/geography/products/names--codes-and-look-ups/names-and-codes-listings/names-and-codes-for-administrative-geography/index.html,Thanet District Council,27/02/2013,332044,270,Civica Uk Ltd,CIV003,East Kent Shared Services,Revenue,Supplies and Services
http://www.ons.gov.uk/ons/guide-method/geography/products/names--codes-and-look-ups/names-and-codes-listings/names-and-codes-for-administrative-geography/index.html,Thanet District Council,27/02/2013,332413,1912.4,Connoisseur Renovations,CON037,Director of Corporate Services and Transformation,Balance Sheet,Long Term Assets
http://www.ons.gov.uk/ons/guide-method/geography/products/names--codes-and-look-ups/names-and-codes-listings/names-and-codes-for-administrative-geography/index.html,Thanet District Council,27/02/2013,330934,260.9,Corporate Direct (Europe) Ltd,COR006,East Kent Shared Services,Revenue,Supplies and Services
http://www.ons.gov.uk/ons/guide-method/geography/products/names--codes-and-look-ups/names-and-codes-listings/names-and-codes-for-administrative-geography/index.html,Thanet District Council,27/02/2013,332091,925,Creditsafe Business Solutions Ltd,CRE013,Director of Corporate Services and Transformation,Revenue,Supplies and Services
http://www.ons.gov.uk/ons/guide-method/geography/products/names--codes-and-look-ups/names-and-codes-listings/names-and-codes-for-administrative-geography/index.html,Thanet District Council,27/02/2013,332355,261.16,Dennis Eagle Ltd,DEN005,Director of Operational Services,Revenue,Transport Related Expenditure
http://www.ons.gov.uk/ons/guide-method/geography/products/names--codes-and-look-ups/names-and-codes-listings/names-and-codes-for-administrative-geography/index.html,Thanet District Council,27/02/2013,332356,237.2,Dennis Eagle Ltd,DEN005,Director of Operational Services,Revenue,Transport Related Expenditure
http://www.ons.gov.uk/ons/guide-method/geography/products/names--codes-and-look-ups/names-and-codes-listings/names-and-codes-for-administrative-geography/index.html,Thanet District Council,27/02/2013,332371,353.62,Dennis Eagle Ltd,DEN005,Director of Operational Services,Revenue,Transport Related Expenditure
http://www.ons.gov.uk/ons/guide-method/geography/products/names--codes-and-look-ups/names-and-codes-listings/names-and-codes-for-administrative-geography/index.html,Thanet District Council,27/02/2013,332037,393.75,Dover District Council,DOV001,East Kent Shared Services,Revenue,Employees
http://www.ons.gov.uk/ons/guide-method/geography/products/names--codes-and-look-ups/names-and-codes-listings/names-and-codes-for-administrative-geography/index.html,Thanet District Council,27/02/2013,332444,358.46,East Kent Components Ltd,EKC006,Director of Operational Services,Revenue,Transport Related Expenditure
http://www.ons.gov.uk/ons/guide-method/geography/products/names--codes-and-look-ups/names-and-codes-listings/names-and-codes-for-administrative-geography/index.html,Thanet District Council,27/02/2013,331519,355,Envirocure Ltd,ENV011,Director of Operational Services,Revenue,Premises Related Expenditure
http://www.ons.gov.uk/ons/guide-method/geography/products/names--codes-and-look-ups/names-and-codes-listings/names-and-codes-for-administrative-geography/index.html,Thanet District Council,27/02/2013,331820,260,Epos Group (Kent),EPO001,Director of Community Services,Revenue,Supplies and Services
http://www.ons.gov.uk/ons/guide-method/geography/products/names--codes-and-look-ups/names-and-codes-listings/names-and-codes-for-administrative-geography/index.html,Thanet District Council,27/02/2013,332416,1834.24,Family Mosaic Housing,FAM001,Director of Corporate Services and Transformation,Balance Sheet,Long Term Assets
http://www.ons.gov.uk/ons/guide-method/geography/products/names--codes-and-look-ups/names-and-codes-listings/names-and-codes-for-administrative-geography/index.html,Thanet District Council,27/02/2013,332417,928.96,Family Mosaic Housing,FAM001,Director of Corporate Services and Transformation,Balance Sheet,Long Term Assets
http://www.ons.gov.uk/ons/guide-method/geography/products/names--codes-and-look-ups/names-and-codes-listings/names-and-codes-for-administrative-geography/index.html,Thanet District Council,27/02/2013,332418,1108.72,Family Mosaic Housing,FAM001,Director of Corporate Services and Transformation,Balance Sheet,Long Term Assets
http://www.ons.gov.uk/ons/guide-method/geography/products/names--codes-and-look-ups/names-and-codes-listings/names-and-codes-for-administrative-geography/index.html,Thanet District Council,27/02/2013,332419,1396.6,Family Mosaic Housing,FAM001,Director of Corporate Services and Transformation,Balance Sheet,Long Term Assets
http://www.ons.gov.uk/ons/guide-method/geography/products/names--codes-and-look-ups/names-and-codes-listings/names-and-codes-for-administrative-geography/index.html,Thanet District Council,27/02/2013,332093,4275,Fuel Oils Kent,FUE001,Director of Operational Services,Revenue,Supplies and Services
http://www.ons.gov.uk/ons/guide-method/geography/products/names--codes-and-look-ups/names-and-codes-listings/names-and-codes-for-administrative-geography/index.html,Thanet District Council,27/02/2013,332046,780,Grant Thornton Uk Llp,GRA048,Director of Corporate Services and Transformation,Revenue,Supplies and Services
http://www.ons.gov.uk/ons/guide-method/geography/products/names--codes-and-look-ups/names-and-codes-listings/names-and-codes-for-administrative-geography/index.html,Thanet District Council,27/02/2013,332299,4080,Groundwork Kent & Medway,GRO015,Director of Operational Services,Revenue,Supplies and Services
http://www.ons.gov.uk/ons/guide-method/geography/products/names--codes-and-look-ups/names-and-codes-listings/names-and-codes-for-administrative-geography/index.html,Thanet District Council,27/02/2013,294728,3127.35,Guideline Lift Services Ltd,GUI002,Director of Operational Services,Revenue,Premises Related Expenditure
http://www.ons.gov.uk/ons/guide-method/geography/products/names--codes-and-look-ups/names-and-codes-listings/names-and-codes-for-administrative-geography/index.html,Thanet District Council,27/02/2013,332339,299.85,Guideline Lift Services Ltd,GUI002,Director of Operational Services,Revenue,Premises Related Expenditure
http://www.ons.gov.uk/ons/guide-method/geography/products/names--codes-and-look-ups/names-and-codes-listings/names-and-codes-for-administrative-geography/index.html,Thanet District Council,27/02/2013,332340,-299.85,Guideline Lift Services Ltd,GUI002,Director of Operational Services,Revenue,Premises Related Expenditure
http://www.ons.gov.uk/ons/guide-method/geography/products/names--codes-and-look-ups/names-and-codes-listings/names-and-codes-for-administrative-geography/index.html,Thanet District Council,27/02/2013,332344,5000,H M Courts & Tribunal Service,HMC007,Director of Operational Services,Revenue,Supplies and Services
http://www.ons.gov.uk/ons/guide-method/geography/products/names--codes-and-look-ups/names-and-codes-listings/names-and-codes-for-administrative-geography/index.html,Thanet District Council,27/02/2013,332463,255,H M Courts & Tribunals Service,HMC008,Director of Operational Services,Revenue,Supplies and Services
http://www.ons.gov.uk/ons/guide-method/geography/products/names--codes-and-look-ups/names-and-codes-listings/names-and-codes-for-administrative-geography/index.html,Thanet District Council,27/02/2013,331892,316.44,Hands On Suppliers Ltd,HAN007,Director of Operational Services,Revenue,Supplies and Services
http://www.ons.gov.uk/ons/guide-method/geography/products/names--codes-and-look-ups/names-and-codes-listings/names-and-codes-for-administrative-geography/index.html,Thanet District Council,27/02/2013,332111,387.84,Haynes Of Maidstone Ltd,HAY008,Director of Operational Services,Revenue,Transport Related Expenditure
http://www.ons.gov.uk/ons/guide-method/geography/products/names--codes-and-look-ups/names-and-codes-listings/names-and-codes-for-administrative-geography/index.html,Thanet District Council,27/02/2013,332442,722.8,Haynes Of Maidstone Ltd,HAY008,Director of Operational Services,Revenue,Transport Related Expenditure
http://www.ons.gov.uk/ons/guide-method/geography/products/names--codes-and-look-ups/names-and-codes-listings/names-and-codes-for-administrative-geography/index.html,Thanet District Council,27/02/2013,331459,7125,Holbrook Revell Electrical Ltd,HOL015,Director of Corporate Services and Transformation,Balance Sheet,Long Term Assets
http://www.ons.gov.uk/ons/guide-method/geography/products/names--codes-and-look-ups/names-and-codes-listings/names-and-codes-for-administrative-geography/index.html,Thanet District Council,27/02/2013,331232,4669.18,Hr Go Recruitment Ltd,HRG002,Director of Operational Services,Revenue,Employees
http://www.ons.gov.uk/ons/guide-method/geography/products/names--codes-and-look-ups/names-and-codes-listings/names-and-codes-for-administrative-geography/index.html,Thanet District Council,27/02/2013,332336,3993.72,Hr Go Recruitment Ltd,HRG002,Director of Operational Services,Revenue,Employees
http://www.ons.gov.uk/ons/guide-method/geography/products/names--codes-and-look-ups/names-and-codes-listings/names-and-codes-for-administrative-geography/index.html,Thanet District Council,27/02/2013,331877,2133.39,Hydraulic & Engineering Servs Ltd,HYD011,Director of Operational Services,Revenue,Premises Related Expenditure
http://www.ons.gov.uk/ons/guide-method/geography/products/names--codes-and-look-ups/names-and-codes-listings/names-and-codes-for-administrative-geography/index.html,Thanet District Council,27/02/2013,331166,597.4,Jewson Ltd,JEW001,Director of Operational Services,Revenue,Supplies and Services
http://www.ons.gov.uk/ons/guide-method/geography/products/names--codes-and-look-ups/names-and-codes-listings/names-and-codes-for-administrative-geography/index.html,Thanet District Council,27/02/2013,332414,1831.8,John Gale,GAL001,Director of Corporate Services and Transformation,Balance Sheet,Long Term Assets
http://www.ons.gov.uk/ons/guide-method/geography/products/names--codes-and-look-ups/names-and-codes-listings/names-and-codes-for-administrative-geography/index.html,Thanet District Council,27/02/2013,332421,687.6,John Gale,GAL001,Director of Corporate Services and Transformation,Balance Sheet,Long Term Assets
http://www.ons.gov.uk/ons/guide-method/geography/products/names--codes-and-look-ups/names-and-codes-listings/names-and-codes-for-administrative-geography/index.html,Thanet District Council,27/02/2013,332422,1586.4,John Gale,GAL001,Director of Corporate Services and Transformation,Balance Sheet,Long Term Assets
http://www.ons.gov.uk/ons/guide-method/geography/products/names--codes-and-look-ups/names-and-codes-listings/names-and-codes-for-administrative-geography/index.html,Thanet District Council,27/02/2013,332424,1236.6,John Gale,GAL001,Director of Corporate Services and Transformation,Balance Sheet,Long Term Assets
http://www.ons.gov.uk/ons/guide-method/geography/products/names--codes-and-look-ups/names-and-codes-listings/names-and-codes-for-administrative-geography/index.html,Thanet District Council,27/02/2013,332428,694.8,John Gale,GAL001,Director of Corporate Services and Transformation,Balance Sheet,Long Term Assets
http://www.ons.gov.uk/ons/guide-method/geography/products/names--codes-and-look-ups/names-and-codes-listings/names-and-codes-for-administrative-geography/index.html,Thanet District Council,27/02/2013,332067,495,Keith Tait,TAI001,Director of Operational Services,Revenue,Premises Related Expenditure
http://www.ons.gov.uk/ons/guide-method/geography/products/names--codes-and-look-ups/names-and-codes-listings/names-and-codes-for-administrative-geography/index.html,Thanet District Council,27/02/2013,332068,965,Keith Tait,TAI001,Director of Operational Services,Revenue,Premises Related Expenditure
http://www.ons.gov.uk/ons/guide-method/geography/products/names--codes-and-look-ups/names-and-codes-listings/names-and-codes-for-administrative-geography/index.html,Thanet District Council,27/02/2013,332314,1168.4,Kent County Council,KCC002,East Kent Shared Services,Revenue,Employees
http://www.ons.gov.uk/ons/guide-method/geography/products/names--codes-and-look-ups/names-and-codes-listings/names-and-codes-for-administrative-geography/index.html,Thanet District Council,27/02/2013,332450,15000,Kent County Council,KCC013,Director of Corporate Services and Transformation,Balance Sheet,Current Assets
http://www.ons.gov.uk/ons/guide-method/geography/products/names--codes-and-look-ups/names-and-codes-listings/names-and-codes-for-administrative-geography/index.html,Thanet District Council,27/02/2013,332014,6790.09,Kent County Council (Kcs),KCC003,Director of Operational Services,Revenue,Premises Related Expenditure
http://www.ons.gov.uk/ons/guide-method/geography/products/names--codes-and-look-ups/names-and-codes-listings/names-and-codes-for-administrative-geography/index.html,Thanet District Council,27/02/2013,332015,5834.75,Kent County Council (Kcs),KCC003,Director of Operational Services,Revenue,Premises Related Expenditure
http://www.ons.gov.uk/ons/guide-method/geography/products/names--codes-and-look-ups/names-and-codes-listings/names-and-codes-for-administrative-geography/index.html,Thanet District Council,27/02/2013,332409,34400.73,Kent County Council (Kcs),KCC003,Director of Operational Services,Revenue,Transport Related Expenditure
http://www.ons.gov.uk/ons/guide-method/geography/products/names--codes-and-look-ups/names-and-codes-listings/names-and-codes-for-administrative-geography/index.html,Thanet District Council,27/02/2013,331170,503.4,Kent Police Authority,KPA001,Director of Community Services,Revenue,Supplies and Services
http://www.ons.gov.uk/ons/guide-method/geography/products/names--codes-and-look-ups/names-and-codes-listings/names-and-codes-for-administrative-geography/index.html,Thanet District Council,27/02/2013,331737,1350,Knaves Ash Plants,KNA001,Director of Corporate Services and Transformation,Balance Sheet,Long Term Assets
http://www.ons.gov.uk/ons/guide-method/geography/products/names--codes-and-look-ups/names-and-codes-listings/names-and-codes-for-administrative-geography/index.html,Thanet District Council,27/02/2013,332460,2719.35,Lakehouse Contracts Ltd,LAK002,Director of Corporate Services and Transformation,Balance Sheet,Current Assets
http://www.ons.gov.uk/ons/guide-method/geography/products/names--codes-and-look-ups/names-and-codes-listings/names-and-codes-for-administrative-geography/index.html,Thanet District Council,27/02/2013,332090,380,Larac,LAR001,Director of Operational Services,Revenue,Supplies and Services
http://www.ons.gov.uk/ons/guide-method/geography/products/names--codes-and-look-ups/names-and-codes-listings/names-and-codes-for-administrative-geography/index.html,Thanet District Council,27/02/2013,332061,122,Legacy Telecom Ltd,LEG004,Director of Corporate Services and Transformation,Revenue,Supplies and Services
http://www.ons.gov.uk/ons/guide-method/geography/products/names--codes-and-look-ups/names-and-codes-listings/names-and-codes-for-administrative-geography/index.html,Thanet District Council,27/02/2013,332061,61,Legacy Telecom Ltd,LEG004,Director of Operational Services,Revenue,Supplies and Services
http://www.ons.gov.uk/ons/guide-method/geography/products/names--codes-and-look-ups/names-and-codes-listings/names-and-codes-for-administrative-geography/index.html,Thanet District Council,27/02/2013,332061,427,Legacy Telecom Ltd,LEG004,East Kent Shared Services,Revenue,Supplies and Services
http://www.ons.gov.uk/ons/guide-method/geography/products/names--codes-and-look-ups/names-and-codes-listings/names-and-codes-for-administrative-geography/index.html,Thanet District Council,27/02/2013,330988,544.36,Lister Wilder Limited,LIS002,Director of Operational Services,Revenue,Supplies and Services
http://www.ons.gov.uk/ons/guide-method/geography/products/names--codes-and-look-ups/names-and-codes-listings/names-and-codes-for-administrative-geography/index.html,Thanet District Council,27/02/2013,332449,7000,Marine Studios Cic,MAR095,Director of Community Services,Revenue,Supplies and Services
http://www.ons.gov.uk/ons/guide-method/geography/products/names--codes-and-look-ups/names-and-codes-listings/names-and-codes-for-administrative-geography/index.html,Thanet District Council,27/02/2013,331907,4712.69,Mears Ltd,MEA003,Director of Operational Services,Revenue,Premises Related Expenditure
http://www.ons.gov.uk/ons/guide-method/geography/products/names--codes-and-look-ups/names-and-codes-listings/names-and-codes-for-administrative-geography/index.html,Thanet District Council,27/02/2013,332317,2062.09,Mears Ltd,MEA003,Director of Corporate Services and Transformation,Balance Sheet,Current Assets
http://www.ons.gov.uk/ons/guide-method/geography/products/names--codes-and-look-ups/names-and-codes-listings/names-and-codes-for-administrative-geography/index.html,Thanet District Council,27/02/2013,332317,703.36,Mears Ltd,MEA003,Director of Operational Services,Revenue,Premises Related Expenditure
http://www.ons.gov.uk/ons/guide-method/geography/products/names--codes-and-look-ups/names-and-codes-listings/names-and-codes-for-administrative-geography/index.html,Thanet District Council,27/02/2013,332318,378.4,Mears Ltd,MEA003,Director of Corporate Services and Transformation,Balance Sheet,Long Term Assets
http://www.ons.gov.uk/ons/guide-method/geography/products/names--codes-and-look-ups/names-and-codes-listings/names-and-codes-for-administrative-geography/index.html,Thanet District Council,27/02/2013,332319,301.5,Mears Ltd,MEA003,Director of Operational Services,Revenue,Premises Related Expenditure
http://www.ons.gov.uk/ons/guide-method/geography/products/names--codes-and-look-ups/names-and-codes-listings/names-and-codes-for-administrative-geography/index.html,Thanet District Council,27/02/2013,332321,258.82,Mears Ltd,MEA003,Director of Community Services,Revenue,Premises Related Expenditure
http://www.ons.gov.uk/ons/guide-method/geography/products/names--codes-and-look-ups/names-and-codes-listings/names-and-codes-for-administrative-geography/index.html,Thanet District Council,27/02/2013,332322,700.35,Mears Ltd,MEA003,Director of Operational Services,Revenue,Premises Related Expenditure
http://www.ons.gov.uk/ons/guide-method/geography/products/names--codes-and-look-ups/names-and-codes-listings/names-and-codes-for-administrative-geography/index.html,Thanet District Council,27/02/2013,331890,4649.91,Med Clean South Ltd,MED015,Director of Operational Services,Revenue,Premises Related Expenditure
http://www.ons.gov.uk/ons/guide-method/geography/products/names--codes-and-look-ups/names-and-codes-listings/names-and-codes-for-administrative-geography/index.html,Thanet District Council,27/02/2013,332323,1406,Michael Page Finance,PAG008,Director of Corporate Services and Transformation,Revenue,Employees
http://www.ons.gov.uk/ons/guide-method/geography/products/names--codes-and-look-ups/names-and-codes-listings/names-and-codes-for-administrative-geography/index.html,Thanet District Council,27/02/2013,331736,1650,Mojo Site Services,MOJ001,Director of Corporate Services and Transformation,Balance Sheet,Long Term Assets
http://www.ons.gov.uk/ons/guide-method/geography/products/names--codes-and-look-ups/names-and-codes-listings/names-and-codes-for-administrative-geography/index.html,Thanet District Council,27/02/2013,332456,360,Mr Dean Thistle,THI007,Director of Corporate Services and Transformation,Revenue,Supplies and Services
http://www.ons.gov.uk/ons/guide-method/geography/products/names--codes-and-look-ups/names-and-codes-listings/names-and-codes-for-administrative-geography/index.html,Thanet District Council,27/02/2013,332374,452.25,National Boat Shows Ltd,NAT001,Director of Operational Services,Revenue,Supplies and Services
http://www.ons.gov.uk/ons/guide-method/geography/products/names--codes-and-look-ups/names-and-codes-listings/names-and-codes-for-administrative-geography/index.html,Thanet District Council,27/02/2013,332004,350,Nec (Uk) Ltd,NEC003,East Kent Shared Services,Revenue,Supplies and Services
http://www.ons.gov.uk/ons/guide-method/geography/products/names--codes-and-look-ups/names-and-codes-listings/names-and-codes-for-administrative-geography/index.html,Thanet District Council,27/02/2013,330798,28025,Netcall Telecom Ltd,NET013,East Kent Shared Services,Revenue,Supplies and Services
http://www.ons.gov.uk/ons/guide-method/geography/products/names--codes-and-look-ups/names-and-codes-listings/names-and-codes-for-administrative-geography/index.html,Thanet District Council,27/02/2013,332300,8647,Netcall Telecom Ltd,NET013,East Kent Shared Services,Revenue,Supplies and Services
http://www.ons.gov.uk/ons/guide-method/geography/products/names--codes-and-look-ups/names-and-codes-listings/names-and-codes-for-administrative-geography/index.html,Thanet District Council,27/02/2013,332033,19950,Northgate Inf Solutions Uk Ltd,NOR018,East Kent Shared Services,Revenue,Supplies and Services
http://www.ons.gov.uk/ons/guide-method/geography/products/names--codes-and-look-ups/names-and-codes-listings/names-and-codes-for-administrative-geography/index.html,Thanet District Council,27/02/2013,332425,10305,Northwood Builders,NOR002,Director of Corporate Services and Transformation,Balance Sheet,Long Term Assets
http://www.ons.gov.uk/ons/guide-method/geography/products/names--codes-and-look-ups/names-and-codes-listings/names-and-codes-for-administrative-geography/index.html,Thanet District Council,27/02/2013,331724,258.76,Parkeon Limited,PAR063,Director of Operational Services,Revenue,Supplies and Services
http://www.ons.gov.uk/ons/guide-method/geography/products/names--codes-and-look-ups/names-and-codes-listings/names-and-codes-for-administrative-geography/index.html,Thanet District Council,27/02/2013,332454,525,R Cannon,CAN007,Director of Operational Services,Revenue,Supplies and Services
http://www.ons.gov.uk/ons/guide-method/geography/products/names--codes-and-look-ups/names-and-codes-listings/names-and-codes-for-administrative-geography/index.html,Thanet District Council,27/02/2013,332284,295,Radar Promotions Ltd,RAD003,Director of Operational Services,Revenue,Supplies and Services
http://www.ons.gov.uk/ons/guide-method/geography/products/names--codes-and-look-ups/names-and-codes-listings/names-and-codes-for-administrative-geography/index.html,Thanet District Council,27/02/2013,332038,1850,Ramsay Project Management Ltd,RAM037,Director of Corporate Services and Transformation,Balance Sheet,Long Term Assets
http://www.ons.gov.uk/ons/guide-method/geography/products/names--codes-and-look-ups/names-and-codes-listings/names-and-codes-for-administrative-geography/index.html,Thanet District Council,27/02/2013,332039,1611,Ramsay Project Management Ltd,RAM037,Director of Corporate Services and Transformation,Balance Sheet,Long Term Assets
http://www.ons.gov.uk/ons/guide-method/geography/products/names--codes-and-look-ups/names-and-codes-listings/names-and-codes-for-administrative-geography/index.html,Thanet District Council,27/02/2013,332312,1855.19,Royal Mail,ROY004,Director of Corporate Services and Transformation,Revenue,Supplies and Services
http://www.ons.gov.uk/ons/guide-method/geography/products/names--codes-and-look-ups/names-and-codes-listings/names-and-codes-for-administrative-geography/index.html,Thanet District Council,27/02/2013,332295,1044,Sba Ltd,SBA001,Director of Operational Services,Revenue,Supplies and Services
http://www.ons.gov.uk/ons/guide-method/geography/products/names--codes-and-look-ups/names-and-codes-listings/names-and-codes-for-administrative-geography/index.html,Thanet District Council,27/02/2013,332476,-125162,Secretary Of State,SEC003,Director of Corporate Services and Transformation,Revenue,Revenue Financing
http://www.ons.gov.uk/ons/guide-method/geography/products/names--codes-and-look-ups/names-and-codes-listings/names-and-codes-for-administrative-geography/index.html,Thanet District Council,27/02/2013,332476,305647,Secretary Of State,SEC003,Director of Corporate Services and Transformation,Balance Sheet,Current Liabilities
http://www.ons.gov.uk/ons/guide-method/geography/products/names--codes-and-look-ups/names-and-codes-listings/names-and-codes-for-administrative-geography/index.html,Thanet District Council,27/02/2013,332477,-125162,Secretary Of State,SEC003,Director of Corporate Services and Transformation,Revenue,Revenue Financing
http://www.ons.gov.uk/ons/guide-method/geography/products/names--codes-and-look-ups/names-and-codes-listings/names-and-codes-for-administrative-geography/index.html,Thanet District Council,27/02/2013,332477,305646,Secretary Of State,SEC003,Director of Corporate Services and Transformation,Balance Sheet,Current Liabilities
http://www.ons.gov.uk/ons/guide-method/geography/products/names--codes-and-look-ups/names-and-codes-listings/names-and-codes-for-administrative-geography/index.html,Thanet District Council,27/02/2013,332423,6165,South East Building Company Limited,SEB001,Director of Corporate Services and Transformation,Balance Sheet,Long Term Assets
http://www.ons.gov.uk/ons/guide-method/geography/products/names--codes-and-look-ups/names-and-codes-listings/names-and-codes-for-administrative-geography/index.html,Thanet District Council,27/02/2013,332426,5730,South East Building Company Limited,SEB001,Director of Corporate Services and Transformation,Balance Sheet,Long Term Assets
http://www.ons.gov.uk/ons/guide-method/geography/products/names--codes-and-look-ups/names-and-codes-listings/names-and-codes-for-administrative-geography/index.html,Thanet District Council,27/02/2013,332427,5790,South East Building Company Limited,SEB001,Director of Corporate Services and Transformation,Balance Sheet,Long Term Assets
http://www.ons.gov.uk/ons/guide-method/geography/products/names--codes-and-look-ups/names-and-codes-listings/names-and-codes-for-administrative-geography/index.html,Thanet District Council,27/02/2013,332415,7708,South East Wetrooms Limited,SEW002,Director of Corporate Services and Transformation,Balance Sheet,Long Term Assets
http://www.ons.gov.uk/ons/guide-method/geography/products/names--codes-and-look-ups/names-and-codes-listings/names-and-codes-for-administrative-geography/index.html,Thanet District Council,27/02/2013,332025,1192.63,Southern Electric,SEL007,Director of Operational Services,Revenue,Premises Related Expenditure
http://www.ons.gov.uk/ons/guide-method/geography/products/names--codes-and-look-ups/names-and-codes-listings/names-and-codes-for-administrative-geography/index.html,Thanet District Council,27/02/2013,332017,1544.58,Southern Water,SWA001,Director of Operational Services,Revenue,Premises Related Expenditure
http://www.ons.gov.uk/ons/guide-method/geography/products/names--codes-and-look-ups/names-and-codes-listings/names-and-codes-for-administrative-geography/index.html,Thanet District Council,27/02/2013,332268,915.64,Southern Water,SWA001,Director of Operational Services,Revenue,Premises Related Expenditure
http://www.ons.gov.uk/ons/guide-method/geography/products/names--codes-and-look-ups/names-and-codes-listings/names-and-codes-for-administrative-geography/index.html,Thanet District Council,27/02/2013,332341,438.02,Southern Water,SWA001,Director of Operational Services,Revenue,Premises Related Expenditure
http://www.ons.gov.uk/ons/guide-method/geography/products/names--codes-and-look-ups/names-and-codes-listings/names-and-codes-for-administrative-geography/index.html,Thanet District Council,27/02/2013,331582,330.17,Stewart Anthony Ltd,ANT001,Director of Operational Services,Revenue,Premises Related Expenditure
http://www.ons.gov.uk/ons/guide-method/geography/products/names--codes-and-look-ups/names-and-codes-listings/names-and-codes-for-administrative-geography/index.html,Thanet District Council,27/02/2013,331991,448.8,Supplies Team,SUP001,Director of Corporate Services and Transformation,Revenue,Supplies and Services
http://www.ons.gov.uk/ons/guide-method/geography/products/names--codes-and-look-ups/names-and-codes-listings/names-and-codes-for-administrative-geography/index.html,Thanet District Council,27/02/2013,332407,448.8,Supplies Team,SUP001,Director of Corporate Services and Transformation,Revenue,Supplies and Services
http://www.ons.gov.uk/ons/guide-method/geography/products/names--codes-and-look-ups/names-and-codes-listings/names-and-codes-for-administrative-geography/index.html,Thanet District Council,27/02/2013,332106,2200,Sykes Construction,SYK002,Director of Operational Services,Revenue,Premises Related Expenditure
http://www.ons.gov.uk/ons/guide-method/geography/products/names--codes-and-look-ups/names-and-codes-listings/names-and-codes-for-administrative-geography/index.html,Thanet District Council,27/02/2013,331992,500,Thanet Swim Club,TSW001,Director of Community Services,Revenue,Supplies and Services
http://www.ons.gov.uk/ons/guide-method/geography/products/names--codes-and-look-ups/names-and-codes-listings/names-and-codes-for-administrative-geography/index.html,Thanet District Council,27/02/2013,331066,2446.79,Thintech Ltd,THI009,Director of Corporate Services and Transformation,Revenue,Supplies and Services
http://www.ons.gov.uk/ons/guide-method/geography/products/names--codes-and-look-ups/names-and-codes-listings/names-and-codes-for-administrative-geography/index.html,Thanet District Council,27/02/2013,332007,404.91,Transeuropa Ferries,TRA041,Director of Operational Services,Revenue,Supplies and Services
http://www.ons.gov.uk/ons/guide-method/geography/products/names--codes-and-look-ups/names-and-codes-listings/names-and-codes-for-administrative-geography/index.html,Thanet District Council,27/02/2013,331581,590.1,Viridor Waste Management Ltd,VIR003,Director of Operational Services,Revenue,Supplies and Services
http://www.ons.gov.uk/ons/guide-method/geography/products/names--codes-and-look-ups/names-and-codes-listings/names-and-codes-for-administrative-geography/index.html,Thanet District Council,27/02/2013,331742,328.27,Xma Ltd,XMA001,Director of Corporate Services and Transformation,Revenue,Supplies and Services
http://www.ons.gov.uk/ons/guide-method/geography/products/names--codes-and-look-ups/names-and-codes-listings/names-and-codes-for-administrative-geography/index.html,Thanet District Council,28/02/2013,332668,44878.39,Geoffrey Borg & Co,BOR003,Director of Corporate Services and Transformation,Balance Sheet,Long Term Assets
